Workbook

Sheet Свод
A1: Кандидаты прошедшие анкетирование | B1: 17671
A2: Кандидатов, не приступивших к анкетированию (основу выбрали, на вопросы анкеты не отвечали) | B2: 2431
A3: Кандидатов, не приступивших к анкетированию (основу не выбрали, на вопросы анкеты не отвечали) | B3: 12
B4: =SUM(B1:B3) -> 20114
A6: Выбрали внебюджетную основу обучения | B6: 2475

Sheet По направлениям
A1: № п\п | B1: Приоритетное направление | C1: Кол-во
A2: 2.1 | B2: Программа ПК по совершенствованию предметной компетентности учителей (педагогов); | C2: 2470
A3: 2.2 | B3: Программа ПК по совершенствованию методической компетентности в преподавании предметной области; | C3: 2121
A4: 2.3 | B4: Программа ПК по совершенствованию психолого-педагогической компетентности учителей (педагогов); | C4: 884
A5: 2.4 | B5: Программа ПК по совершенствованию коммуникативной компетентности учителей (педагогов); | C5: 852
A6: 2.5 | B6: Программа ПК, в которую включены модули, одновременно отражающие ключевые направления профессионального развития учителя (педагога): предметное, методическое, психолого-педагогическое, коммуникативное; | C6: 3407
A7: 2.6 | B7: Программа ПК, которая формирует у учителя(педагога) навыки развития у обучающихся метапредметных умений (например, креативность, критическое мышление, умение решать проблемы и др.); | C7: 2436
A8: 2.7 | B8: Программа ПК, которая формирует у учителя (педагога) навыки работы в поликультурной или многоязычной среде; | C8: 611
A9: 2.8 | B9: Программа ПК, которая формирует у учителя (педагога) навыки в области цифровых технологий применительно к работе учителя (педагога); | C9: 801
A10: 2.9 | B10: Программа ПК, которая формирует у учителя (педагога) навыки обучения детей с ограниченными возможностями здоровья (ОВЗ); | C10: 1448
A11: 2.10 | B11: Программа ПК, которая развивает у учителя навыки оценивания обучающихся; | C11: 500
A12: 2.11 | B12: Программа ПК по подготовке тьюторов в области цифровых технологий; Программа ПК по подготовке тьюторов в области цифровых технологий. | C12: 125
A13: 2.12 | B13: Дистанционная программа ПК для отдельных категорий участников: старших воспитателей, учителей обществознания, географии, педагогов ДОД; | C13: 283
A14: 2.13 | B14: Иное; | C14: 1733
B15: Всего: | C15: =SUM(C2:C14) -> 17671

Sheet 2.1 (2470)
A1: 2.1 Программа ПК по совершенствованию предметной компетентности учителей (педагогов);
A2: № | B2: Предмет | C2: Всего | D2: ВКК | E2: I КК | F2: II КК | G2: без КК | H2: N
A3: 1 | B3: Директор | C3: =SUM(D3:H3) -> 23 | D3: 9 | E3: 7 | H3: 7
A4: 2 | B4: Заместитель директора | C4: 17 | D4: 3 | E4: 10 | G4: 2 | H4: 2
A5: 3 | B5: Заместитель | C5: 17 | D5: 7 | E5: 7 | H5: 3
A6: 7 | B6: Педагог-библиотекарь | C6: 5 | D6: 1 | E6: 2 | G6: 1 | H6: 1
A7: 8 | B7: Педагог-организатор | C7: 6 | E7: 2 | G7: 1 | H7: 3
A8: 9 | B8: Педагог-психолог | C8: 0
A9: 10 | B9: Педагог доп. образования | C9: 3 | D9: 1 | E9: 1 | H9: 1
A10: 12 | B10: Социальный педагог | C10: 0
A11: 13 | B11: Воспитатель | C11: 20 | E11: 9 | F11: 1 | G11: 2 | H11: 8
A12: 15 | B12: Специалист | C12: 2 | G12: 2
A13: 21 | B13: Учитель-дефектолог | C13: 1 | G13: 1
A14: 26 | B14: Учитель (предмет не указан) | C14: 158 | D14: 6 | E14: 18 | F14: 3 | G14: 52 | H14: 79
A15: 27 | B15: Начальные классы | C15: 230 | D15: 58 | E15: 138 | F15: 5 | G15: 9 | H15: 20
A16: 28 | B16: Рус.яз. и лит-ра | C16: 200 | D16: 55 | E16: 108 | F16: 3 | G16: 15 | H16: 19
A17: 29 | B17: Тат.яз и лит | C17: 155 | D17: 38 | E17: 79 | F17: 3 | G17: 6 | H17: 29
A18: 31 | B18: Чувашский язык | C18: 5 | D18: 1 | E18: 4
A19: 33 | B19: Анг.яз. | C19: 111 | D19: 7 | E19: 57 | F19: 8 | G19: 12 | H19: 27
A20: 34 | B20: Франц.яз. | C20: 2 | D20: 1 | E20: 1
A21: 35 | B21: Немец.яз. | C21: 5 | D21: 2 | E21: 1 | G21: 1 | H21: 1
A22: 36 | B22: Математика | C22: 141 | D22: 15 | E22: 98 | F22: 2 | G22: 10 | H22: 16
A23: 37 | B23: Информатика и ИКТ | C23: 52 | D23: 10 | E23: 28 | F23: 2 | G23: 4 | H23: 8
A24: 38 | B24: История и обществознание | C24: 105 | D24: 20 | E24: 59 | F24: 2 | G24: 5 | H24: 19
A25: 39 | B25: География | C25: 48 | D25: 6 | E25: 32 | F25: 1 | G25: 4 | H25: 5
A26: 40 | B26: Физика | C26: 41 | D26: 7 | E26: 19 | F26: 2 | G26: 7 | H26: 6
A27: 41 | B27: Химия | C27: 31 | D27: 9 | E27: 13 | F27: 1 | G27: 3 | H27: 5
A28: 42 | B28: Биология | C28: 48 | D28: 15 | E28: 28 | G28: 1 | H28: 4
A29: 43 | B29: ИЗО | C29: 24 | D29: 9 | E29: 10 | F29: 1 | H29: 4
A30: 44 | B30: Музыка | C30: 38 | D30: 10 | E30: 21 | F30: 1 | G30: 2 | H30: 4
A31: 45 | B31: Технология | C31: 68 | D31: 10 | E31: 38 | F31: 4 | G31: 4 | H31: 12
A32: 46 | B32: ОБЖ | C32: 16 | D32: 2 | E32: 7 | G32: 1 | H32: 6
A33: 47 | B33: Преподаватель-организатор ОБЖ | C33: 9 | D33: 1 | E33: 5 | G33: 1 | H33: 2
A34: 48 | B34: Физ-ра | C34: 107 | D34: 18 | E34: 56 | F34: 3 | G34: 8 | H34: 22
A35: 51 | B35: ОРКСЭ | C35: 10 | E35: 7 | G35: 1 | H35: 2
A36: 52 | B36: Классный час | C36: 2 | H36: 2
A37: 53 | B37: Музыкальный руководитель | C37: 1 | E37: 1
A38: 54 | B38: N | C38: =SUM(D38:H38) -> 181 | D38: 49 | E38: 94 | F38: 4 | G38: 16 | H38: 18
C39: =SUM(C3:C38) -> 1,882
A40: ДОО
A41: № | B41: Предмет | C41: Всего | D41: ВКК | E41: I КК | F41: II КК | G41: без КК | H41: N
A42: 1 | B42: Заведующий | C42: =SUM(D42:H42) -> 7 | E42: 4 | G42: 3
A43: 6 | B43: Воспитатель | C43: =SUM(D43:H43) -> 238 | D43: 23 | E43: 99 | F43: 3 | G43: 39 | H43: 74
A44: 7 | B44: Дошкольник | C44: 1 | G44: 1
A45: 8 | B45: Инструктор по физ.культуре | C45: 11 | D45: 2 | E45: 3 | G45: 1 | H45: 5
A46: 11 | B46: Методист | C46: 1 | H46: 1
A47: 12 | B47: Муз. руководитель | C47: 40 | D47: 10 | E47: 20 | G47: 4 | H47: 6
A48: 15 | B48: Педагог-психолог | C48: 3 | D48: 1 | G48: 2
A49: 20 | B49: Учитель | C49: 1 | H49: 1
A50: 21 | B50: Учитель-дефектолог | C50: 1 | E50: 1
A51: 24 | B51: Учитель-логопед | C51: 17 | D51: 1 | E51: 6 | F51: 1 | G51: 3 | H51: 6
A52: 25 | B52: N | C52: 3 | E52: 1 | G52: 2
C53: =SUM(C42:C52) -> 323
A54: ДОД
A55: № | B55: Предмет | C55: Всего | D55: ВКК | E55: I КК | F55: II КК | G55: без КК | H55: N
A56: 1 | B56: Директор | C56: =SUM(D56:H56) -> 2 | E56: 1 | H56: 1
A57: 2 | B57: Заместитель | C57: =SUM(D57:H57) -> 1 | H57: 1
A58: 4 | B58: Заведующий | C58: 6 | D58: 2 | E58: 2 | G58: 1 | H58: 1
A59: 6 | B59: Заведующий структурного подразделения | C59: 1 | H59: 1
A60: 8 | B60: Концертмейстер | C60: 3 | E60: 1 | H60: 2
A61: 9 | B61: Методист | C61: 1 | D61: 1
A62: 10 | B62: Педагог доп.образования | C62: 64 | D62: 15 | E62: 30 | F62: 1 | G62: 4 | H62: 14
A63: 13 | B63: Преподаватель | C63: 27 | D63: 7 | E63: 12 | G63: 4 | H63: 4
A64: 14 | B64: Преподаватель ДМШ | C64: 8 | E64: 5 | G64: 1 | H64: 2
A65: 15 | B65: Преподаватель ДХШ | C65: 1 | H65: 1
A66: 16 | B66: Преподаватель ДШИ | C66: 6 | E66: 5 | G66: 1
A67: 19 | B67: N | C67: 3 | E67: 1 | H67: 2
A68: 20 | B68: Воспитатель | C68: 1 | H68: 1
C69: =SUM(C56:C68) -> 124
A70: Районные учреждения образования | D70: ИМЦ, РОО
A71: № | B71: Предмет | C71: Всего | D71: ВКК | E71: I КК | F71: II КК | G71: без КК | H71: N
A72: 5 | B72: Старший методист | C72: 1 | E72: 1
C73: 1
A74: ПО
A75: № | B75: Предмет | C75: Всего | D75: ВКК | E75: I КК | F75: II КК | G75: без КК | H75: N
A76: 6 | B76: Заведующий отделением | C76: =SUM(D76:H76) -> 2 | D76: 1 | G76: 1
A77: 8 | B77: Заведующий филиалом | C77: 1 | H77: 1
A78: 9 | B78: Заместитель | C78: 1 | D78: 1
A79: 10 | B79: Заместитель директора | C79: 4 | G79: 3 | H79: 1
A80: 12 | B80: Мастер производ.обучения | C80: 11 | D80: 4 | E80: 3 | H80: 4
A81: 13 | B81: Методист | C81: 2 | E81: 1 | G81: 1
A82: 19 | B82: Педагог-психолог | C82: 1 | G82: 1
A83: 21 | B83: Преподаватель | C83: 115 | D83: 31 | E83: 32 | F83: 6 | G83: 19 | H83: 27
B84: Учитель | C84: 1 | H84: 1
A85: 30 | B85: N | C85: =SUM(D85:H85) -> 1 | G85: 1
A86: 31 | B86: Концертмейстер | C86: =SUM(D86:H86) -> 1 | D86: 1
C87: =SUM(C76:C86) -> 140
B88: ИТОГО | C88: 2470

Sheet 2.2 (2121)
A1: 2.2 Программа ПК по совершенствованию методической компетентности в преподавании предметной области;
A2: № | B2: Предмет | C2: Всего | D2: ВКК | E2: I КК | F2: II КК | G2: без КК | H2: N
A3: 1 | B3: Директор | C3: =SUM(D3:H3) -> 20 | D3: 3 | E3: 13 | F3: 1 | H3: 3
A4: 2 | B4: Заместитель директора | C4: 23 | D4: 5 | E4: 14 | G4: 2 | H4: 2
A5: 3 | B5: Заместитель | C5: 34 | D5: 8 | E5: 23 | H5: 3
A6: 7 | B6: Педагог-библиотекарь | C6: 8 | E6: 2 | H6: 6
A7: 8 | B7: Педагог-организатор | C7: 3 | E7: 2 | H7: 1
A8: 9 | B8: Педагог-психолог | C8: 3 | E8: 1 | G8: 2
A9: 10 | B9: Педагог доп. образования | C9: 5 | E9: 1 | G9: 2 | H9: 2
A10: 13 | B10: Воспитатель | C10: 6 | E10: 1 | G10: 2 | H10: 3
A11: 20 | B11: Тьютор | C11: 1 | E11: 1
A12: 21 | B12: Учитель-дефектолог | C12: 1 | G12: 1
A13: 23 | B13: Учитель-дефектолог (сурдопедагог) | C13: 1 | E13: 1
A14: 26 | B14: Учитель (предмет не указан) | C14: 117 | D14: 6 | E14: 21 | F14: 3 | G14: 35 | H14: 52
A15: 27 | B15: Начальные классы | C15: 188 | D15: 50 | E15: 95 | F15: 2 | G15: 13 | H15: 28
A16: 28 | B16: Рус.яз. и лит-ра | C16: 157 | D16: 43 | E16: 87 | F16: 2 | G16: 7 | H16: 18
A17: 29 | B17: Тат.яз и лит | C17: 192 | D17: 41 | E17: 121 | F17: 6 | G17: 9 | H17: 15
A18: 31 | B18: Чувашский язык | C18: 3 | E18: 3
A19: 33 | B19: Анг.яз. | C19: 131 | D19: 25 | E19: 65 | F19: 5 | G19: 14 | H19: 22
A20: 34 | B20: Франц.яз. | C20: 1 | E20: 1
A21: 35 | B21: Немец.яз. | C21: 3 | D21: 1 | E21: 2
A22: 36 | B22: Математика | C22: 135 | D22: 14 | E22: 83 | F22: 4 | G22: 10 | H22: 24
A23: 37 | B23: Информатика и ИКТ | C23: 23 | D23: 2 | E23: 12 | G23: 2 | H23: 7
A24: 38 | B24: История и обществознание | C24: 85 | D24: 10 | E24: 53 | G24: 11 | H24: 11
A25: 39 | B25: География | C25: 50 | D25: 9 | E25: 28 | F25: 1 | G25: 5 | H25: 7
A26: 40 | B26: Физика | C26: 41 | D26: 11 | E26: 22 | F26: 2 | G26: 1 | H26: 5
A27: 41 | B27: Химия | C27: 30 | D27: 7 | E27: 19 | G27: 2 | H27: 2
A28: 42 | B28: Биология | C28: 60 | D28: 18 | E28: 31 | G28: 4 | H28: 7
A29: 43 | B29: ИЗО | C29: 17 | D29: 7 | E29: 5 | F29: 1 | G29: 1 | H29: 3
A30: 44 | B30: Музыка | C30: 29 | D30: 7 | E30: 13 | G30: 1 | H30: 8
A31: 45 | B31: Технология | C31: 46 | D31: 7 | E31: 29 | F31: 2 | G31: 2 | H31: 6
A32: 46 | B32: ОБЖ | C32: 11 | D32: 3 | E32: 4 | F32: 1 | G32: 2 | H32: 1
A33: 47 | B33: Преподаватель-организатор ОБЖ | C33: 7 | D33: 1 | E33: 3 | G33: 1 | H33: 2
A34: 48 | B34: Физ-ра | C34: 72 | D34: 17 | E34: 42 | F34: 1 | G34: 2 | H34: 10
A35: 51 | B35: ОРКСЭ | C35: 2 | E35: 2
A36: 54 | B36: N | C36: 146 | D36: 37 | E36: 77 | F36: 3 | G36: 16 | H36: 13
A37: 54 | B37: Руководитель физического воспитания | C37: =SUM(D37:H37) -> 1 | H37: 1
C38: =SUM(C3:C37) -> 1,652
A39: ДОО
A40: № | B40: Предмет | C40: Всего | D40: ВКК | E40: I КК | F40: II КК | G40: без КК | H40: N
A41: 1 | B41: Заведующий | C41: =SUM(D41:H41) -> 8 | D41: 1 | E41: 3 | F41: 1 | G41: 3
A42: 3 | B42: Заместитель | C42: =SUM(D42:H42) -> 1 | D42: 1
A43: 6 | B43: Воспитатель | C43: 157 | D43: 8 | E43: 72 | F43: 4 | G43: 34 | H43: 39
A44: 8 | B44: Инструктор по физ.культуре | C44: 14 | D44: 1 | E44: 6 | G44: 1 | H44: 6
A45: 11 | B45: Методист | C45: 1 | E45: 1
A46: 12 | B46: Муз. руководитель | C46: 29 | D46: 7 | E46: 13 | G46: 6 | H46: 3
A47: 13 | B47: Педагог дополнительного образования | C47: 1 | H47: 1
A48: 15 | B48: Педагог-психолог | C48: 3 | G48: 1 | H48: 2
A49: 19 | B49: Старший воспитатель | C49: 7 | D49: 1 | E49: 2 | G49: 2 | H49: 2
A50: 24 | B50: Учитель-логопед | C50: 5 | D50: 1 | E50: 1 | G50: 2 | H50: 1
A51: 25 | B51: N | C51: 2 | E51: 1 | G51: 1
C52: =SUM(C41:C51) -> 228
A53: ДОД
A54: № | B54: Предмет | C54: Всего | D54: ВКК | E54: I КК | F54: II КК | G54: без КК | H54: N
A55: 1 | B55: Директор | C55: =SUM(D55:H55) -> 1 | H55: 1
A56: 2 | B56: Заместитель | C56: =SUM(D56:H56) -> 2 | G56: 1 | H56: 1
A57: 3 | B57: Заместитель директора | C57: 2 | G57: 2
A58: 5 | B58: Заведующий отделением | C58: 1 | H58: 1
A59: 9 | B59: Методист | C59: 13 | D59: 1 | E59: 2 | G59: 3 | H59: 7
A60: 10 | B60: Педагог доп.образования | C60: 15 | D60: 3 | E60: 2 | G60: 4 | H60: 6
A61: 11 | B61: Педагог-организатор | C61: 1 | E61: 1
A62: 13 | B62: Преподаватель | C62: 11 | D62: 4 | E62: 5 | G62: 1 | H62: 1
A63: 14 | B63: Преподаватель ДМШ | C63: 7 | D63: 1 | E63: 5 | H63: 1
A64: 16 | B64: Преподаватель ДШИ | C64: 10 | D64: 2 | E64: 3 | G64: 4 | H64: 1
A65: 19 | B65: N | C65: 1 | H65: 1
C66: =SUM(C55:C65) -> 64
A67: Районные учреждения образования | D67: ИМЦ, РОО
A68: № | B68: Предмет | C68: Всего | D68: ВКК | E68: I КК | F68: II КК | G68: без КК | H68: N
A69: 4 | B69: Методист | C69: =SUM(D69:H69) -> 25 | E69: 10 | G69: 6 | H69: 9
A70: 5 | B70: Старший методист | C70: 1 | D70: 1 | E70: 1 | F70: 1 | G70: 1 | H70: 1
C71: 26
A72: ПО
A73: № | B73: Предмет | C73: Всего | D73: ВКК | E73: I КК | F73: II КК | G73: без КК | H73: N
A74: 6 | B74: Заведующий отделением | C74: =SUM(D74:H74) -> 5 | E74: 2 | H74: 3
A75: 9 | B75: Заместитель | C75: 1 | H75: 1
A76: 10 | B76: Заместитель директора | C76: 7 | G76: 2 | H76: 5
A77: 12 | B77: Мастер производ.обучения | C77: 10 | D77: 1 | E77: 2 | G77: 2 | H77: 5
A78: 13 | B78: Методист | C78: 6 | D78: 4 | G78: 2
A79: 21 | B79: Преподаватель | C79: 115 | D79: 19 | E79: 51 | F79: 2 | G79: 11 | H79: 32
B80: Учитель | C80: 2 | G80: 1 | H80: 1
A81: 25 | B81: Старший мастер | C81: 1 | H81: 1
A82: 28 | B82: Преподаватель физического воспитания | C82: 1 | E82: 1
A83: 30 | B83: N | C83: 1 | G83: 1
A84: 31 | B84: Концертмейстер | C84: 1 | D84: 1
C85: =SUM(C74:C84) -> 150
A86: Прочие (детские дома, центры психолого-медико-социального сопровождения, межшкольный учебный комбинат, вечерняя школа закрытого типа)
A87: № | B87: Предмет | C87: Всего | D87: ВКК | E87: I КК | F87: II КК | G87: без КК | H87: N
A88: 3 | B88: Замиститель | C88: 1 | E88: 1
C89: 1
C90: 2121

Sheet 2.3 (884)
A1: 2.3 Программа ПК по совершенствованию психолого-педагогической компетентности учителей (педагогов)
A2: № | B2: Предмет | C2: Всего | D2: ВКК | E2: I КК | F2: II КК | G2: без КК | H2: N
A3: 1 | B3: Директор | C3: =SUM(D3:H3) -> 12 | D3: 3 | E3: 5 | G3: 2 | H3: 2
A4: 2 | B4: Заместитель директора | C4: 8 | E4: 4 | G4: 3 | H4: 1
A5: 3 | B5: Заместитель | C5: 13 | D5: 3 | E5: 8 | F5: 1 | H5: 1
A6: 4 | B6: Заведующий | C6: 1 | G6: 1
A7: 7 | B7: Педагог-библиотекарь | C7: 7 | D7: 1 | E7: 3 | H7: 3
A8: 8 | B8: Педагог-организатор | C8: 6 | D8: 1 | E8: 2 | G8: 1 | H8: 2
A9: 9 | B9: Педагог-психолог | C9: 37 | D9: 4 | E9: 11 | G9: 9 | H9: 13
A10: 10 | B10: Педагог доп. образования | C10: 4 | E10: 2 | H10: 2
A11: 12 | B11: Социальный педагог | C11: 6 | E11: 3 | G11: 2 | H11: 1
A12: 13 | B12: Воспитатель | C12: 24 | D12: 2 | E12: 9 | F12: 3 | G12: 2 | H12: 8
A13: 20 | B13: Тьютор | C13: 1 | G13: 1
A14: 21 | B14: Учитель-дефектолог | C14: 1 | E14: 1
A15: 25 | B15: Учитель-логопед | C15: 1 | E15: 1
A16: 26 | B16: Учитель (предмет не указан) | C16: 40 | D16: 1 | E16: 7 | F16: 1 | G16: 16 | H16: 15
A17: 27 | B17: Начальные классы | C17: 57 | D17: 7 | E17: 32 | F17: 5 | G17: 5 | H17: 8
A18: 28 | B18: Рус.яз. и лит-ра | C18: 12 | D18: 1 | E18: 9 | F18: 1 | H18: 1
A19: 29 | B19: Тат.яз и лит | C19: 12 | D19: 1 | E19: 6 | F19: 1 | G19: 1 | H19: 3
A20: 33 | B20: Анг.яз. | C20: 9 | E20: 5 | F20: 1 | G20: 1 | H20: 2
A21: 36 | B21: Математика | C21: 13 | D21: 1 | E21: 7 | G21: 3 | H21: 2
A22: 37 | B22: Информатика и ИКТ | C22: 1 | E22: 1
A23: 38 | B23: История и обществознание | C23: 7 | E23: 5 | H23: 2
A24: 39 | B24: География | C24: 3 | E24: 2 | H24: 1
A25: 40 | B25: Физика | C25: 1 | E25: 1
A26: 42 | B26: Биология | C26: 4 | D26: 2 | E26: 2
A27: 43 | B27: ИЗО | C27: 2 | D27: 1 | E27: 1
A28: 44 | B28: Музыка | C28: 2 | E28: 2
A29: 45 | B29: Технология | C29: 6 | E29: 4 | G29: 1 | H29: 1
A30: 46 | B30: ОБЖ | C30: 2 | F30: 1 | H30: 1
A31: 47 | B31: Преподаватель-организатор ОБЖ | C31: 1 | E31: 1
A32: 48 | B32: Физ-ра | C32: 8 | D32: 2 | E32: 1 | G32: 2 | H32: 3
A33: 52 | B33: Классный час | C33: 2 | G33: 1 | H33: 1
A34: 54 | B34: N | C34: 17 | D34: 7 | E34: 8 | H34: 2
C35: =SUM(C3:C34) -> 320
A36: ДОО
A37: № | B37: Предмет | C37: Всего | D37: ВКК | E37: I КК | F37: II КК | G37: без КК | H37: N
A38: 1 | B38: Заведующий | C38: =SUM(D38:H38) -> 29 | D38: 3 | E38: 9 | G38: 7 | H38: 10
A39: 5 | B39: Заместитель заведующего | C39: =SUM(D39:H39) -> 1 | H39: 1
A40: 6 | B40: Воспитатель | C40: 328 | D40: 26 | E40: 169 | F40: 5 | G40: 52 | H40: 76
A41: 8 | B41: Инструктор по физ.культуре | C41: 8 | E41: 5 | H41: 3
A42: 12 | B42: Муз. руководитель | C42: 20 | D42: 4 | E42: 9 | F42: 2 | G42: 2 | H42: 3
A43: 15 | B43: Педагог-психолог | C43: 35 | D43: 4 | E43: 13 | G43: 7 | H43: 11
A44: 19 | B44: Старший воспитатель | C44: 11 | D44: 1 | E44: 5 | G44: 2 | H44: 3
A45: 24 | B45: Учитель-логопед | C45: 6 | D45: 2 | E45: 2 | H45: 2
A46: 25 | B46: N | C46: 6 | D46: 2 | E46: 2 | G46: 1 | H46: 1
C47: =SUM(C38:C46) -> 444
A48: ДОД
A49: № | B49: Предмет | C49: Всего | D49: ВКК | E49: I КК | F49: II КК | G49: без КК | H49: N
A50: 1 | B50: Директор | C50: =SUM(D50:H50) -> 2 | D50: 2
A51: 2 | B51: Заместитель | C51: =SUM(D51:H51) -> 3 | D51: 2 | H51: 1
A52: 3 | B52: Заместитель директора | C52: 1 | E52: 1
A53: 4 | B53: Заведующий | C53: 1 | H53: 1
A54: 8 | B54: Концертмейстер | C54: 2 | D54: 2
A55: 9 | B55: Методист | C55: 1 | E55: 1
A56: 10 | B56: Педагог доп.образования | C56: 31 | D56: 7 | E56: 12 | G56: 4 | H56: 8
A57: 12 | B57: Педагог-психолог | C57: 1 | H57: 1
A58: 13 | B58: Преподаватель | C58: 3 | E58: 2 | H58: 1
A59: 14 | B59: Преподаватель ДМШ | C59: 17 | D59: 4 | E59: 8 | G59: 1 | H59: 4
A60: 16 | B60: Преподаватель ДШИ | C60: 1 | E60: 1
C61: =SUM(C50:C60) -> 63
A62: Районные учреждения образования | D62: ИМЦ, РОО
A63: № | B63: Предмет | C63: Всего | D63: ВКК | E63: I КК | F63: II КК | G63: без КК | H63: N
A64: 3 | B64: Педагог-психолог | C64: 1 | H64: 1
A65: 4 | B65: Методист | C65: 1 | E65: 1
C66: 2
A67: ПО
A68: № | B68: Предмет | C68: Всего | D68: ВКК | E68: I КК | F68: II КК | G68: без КК | H68: N
A69: 4 | B69: Заведующий | C69: =SUM(D69:H69) -> 1 | D69: 1
A70: 10 | B70: Заместитель директора | C70: 2 | H70: 2
A71: 12 | B71: Мастер производ.обучения | C71: 5 | E71: 2 | H71: 3
A72: 16 | B72: Педагог доп.образования | C72: 1 | H72: 1
A73: 19 | B73: Педагог-психолог | C73: 2 | E73: 1 | H73: 1
A74: 21 | B74: Преподаватель | C74: 35 | D74: 2 | E74: 13 | G74: 7 | H74: 13
B75: Учитель | C75: 2 | F75: 1 | G75: 1
A76: 28 | B76: Руководитель физического воспитания | C76: 1 | E76: 1
A77: 30 | B77: N | C77: 1 | G77: 1
C78: =SUM(C69:C77) -> 50
A79: Прочие (детские дома, центры психолого-медико-социального сопровождения, межшкольный учебный комбинат, вечерняя школа закрытого типа)
A80: № | B80: Предмет | C80: Всего | D80: ВКК | E80: I КК | F80: II КК | G80: без КК | H80: N
A81: 1 | B81: Воспитатель | C81: 2 | G81: 1 | H81: 1
A82: 10 | B82: Педагог-психолог | C82: 2 | D82: 1 | H82: 1
A83: 18 | B83: Заведующий отделением | C83: 1 | E83: 1
C84: 5
C85: 884

Sheet 2.4 (852)
A1: 2.4 Программа ПК по совершенствованию коммуникативной компетентности учителей (педагогов);
A2: № | B2: Предмет | C2: Всего | D2: ВКК | E2: I КК | F2: II КК | G2: без КК | H2: N
A3: 1 | B3: Директор | C3: =SUM(D3:H3) -> 19 | D3: 3 | E3: 10 | G3: 2 | H3: 4
A4: 2 | B4: Заместитель директора | C4: 9 | E4: 3 | G4: 2 | H4: 4
A5: 3 | B5: Заместитель | C5: 8 | D5: 2 | E5: 5 | H5: 1
A6: 7 | B6: Педагог-библиотекарь | C6: 11 | D6: 2 | E6: 2 | F6: 1 | H6: 6
A7: 8 | B7: Педагог-организатор | C7: 4 | E7: 2 | G7: 1 | H7: 1
A8: 9 | B8: Педагог-психолог | C8: 1 | E8: 1
A9: 10 | B9: Педагог доп. образования | C9: 3 | E9: 1 | G9: 1 | H9: 1
A10: 13 | B10: Воспитатель | C10: 21 | D10: 1 | E10: 11 | G10: 3 | H10: 6
A11: 14 | B11: Старший воспитатель | C11: 1 | D11: 1
A12: 23 | B12: Учитель-дефектолог (сурдопедагог) | C12: 1 | E12: 1
A13: 26 | B13: Учитель (предмет не указан) | C13: 37 | D13: 1 | E13: 9 | G13: 7 | H13: 20
A14: 27 | B14: Начальные классы | C14: 65 | D14: 6 | E14: 49 | G14: 3 | H14: 7
A15: 28 | B15: Рус.яз. и лит-ра | C15: 16 | D15: 6 | E15: 8 | G15: 1 | H15: 1
A16: 29 | B16: Тат.яз и лит | C16: 86 | D16: 9 | E16: 67 | F16: 2 | G16: 4 | H16: 4
A17: 33 | B17: Анг.яз. | C17: 37 | D17: 5 | E17: 20 | F17: 2 | G17: 3 | H17: 7
A18: 35 | B18: Немец.яз. | C18: 3 | E18: 2 | H18: 1
A19: 36 | B19: Математика | C19: 14 | D19: 1 | E19: 7 | G19: 2 | H19: 4
A20: 37 | B20: Информатика и ИКТ | C20: 2 | E20: 2
A21: 38 | B21: История и обществознание | C21: 14 | D21: 1 | E21: 10 | H21: 3
A22: 39 | B22: География | C22: 5 | D22: 2 | E22: 3
A23: 40 | B23: Физика | C23: 4 | E23: 2 | F23: 1 | H23: 1
A24: 41 | B24: Химия | C24: 1
A25: 42 | B25: Биология | C25: 7 | D25: 4 | E25: 2 | H25: 1
A26: 43 | B26: ИЗО | C26: 1 | D26: 1
A27: 44 | B27: Музыка | C27: 5 | E27: 3 | H27: 2
A28: 45 | B28: Технология | C28: 10 | D28: 2 | E28: 7 | H28: 1
A29: 46 | B29: ОБЖ | C29: 4 | D29: 2 | E29: 1 | H29: 1
A30: 48 | B30: Физ-ра | C30: 11 | E30: 9 | H30: 2
A31: 51 | B31: ОРКСЭ | C31: 1 | E31: 1
A32: 54 | B32: N | C32: 40 | D32: 5 | E32: 23 | F32: 2 | G32: 2 | H32: 8
C33: =SUM(C3:C32) -> 441
A34: ДОО
A35: № | B35: Предмет | C35: Всего | D35: ВКК | E35: I КК | F35: II КК | G35: без КК | H35: N
A36: 1 | B36: Заведующий | C36: =SUM(D36:H36) -> 12 | E36: 4 | G36: 3 | H36: 5
A37: 5 | B37: Заместитель заведующего | C37: =SUM(D37:H37) -> 1 | G37: 1
A38: 6 | B38: Воспитатель | C38: 309 | D38: 39 | E38: 143 | F38: 3 | G38: 53 | H38: 71
A39: 8 | B39: Инструктор по физ.культуре | C39: 4 | D39: 1 | E39: 1 | G39: 2
A40: 12 | B40: Муз. руководитель | C40: 14 | D40: 3 | E40: 8 | G40: 3
A41: 15 | B41: Педагог-психолог | C41: 3 | E41: 1 | H41: 2
A42: 19 | B42: Старший воспитатель | C42: 2 | G42: 1 | H42: 1
A43: 24 | B43: Учитель-логопед | C43: 2 | E43: 1 | G43: 1
A44: 25 | B44: N | C44: 4 | E44: 1 | G44: 1 | H44: 2
A45: 26 | B45: Ведущий специалист | C45: 1 | G45: 1
C46: =SUM(C36:C45) -> 352
A47: ДОД
A48: № | B48: Предмет | C48: Всего | D48: ВКК | E48: I КК | F48: II КК | G48: без КК | H48: N
A49: 1 | B49: Директор | C49: =SUM(D49:H49) -> 1 | E49: 1
A50: 4 | B50: Заведующий | C50: =SUM(D50:H50) -> 1 | H50: 1
A51: 8 | B51: Концертмейстер | C51: =SUM(D51:H51) -> 1 | E51: 1
A52: 9 | B52: Методист | C52: =SUM(D51:H51) -> 1 | H52: 1
A53: 10 | B53: Педагог доп.образования | C53: =SUM(D53:H53) -> 12 | D53: 3 | E53: 5 | G53: 2 | H53: 2
A54: 13 | B54: Преподаватель | C54: =SUM(D54:H54) -> 2 | E54: 2
A55: 14 | B55: Преподаватель ДМШ | C55: =SUM(D55:H55) -> 1 | E55: 1
A56: 16 | B56: Преподаватель ДШИ | C56: =SUM(D56:H56) -> 2 | D56: 1 | H56: 1
A57: 20 | B57: Специалист | C57: =SUM(D57:H57) -> 2 | E57: 1 | H57: 1
C58: =SUM(C49:C57) -> 23
A59: Районные учреждения образования
A60: № | B60: Предмет | C60: Всего | D60: ВКК | E60: I КК | F60: II КК | G60: без КК | H60: N
A61: 2 | B61: Заместитель | C61: 1 | G61: 1
A62: 4 | B62: Методист | C62: 2 | H62: 2
A63: 6 | B63: Специалист | C63: 1 | E63: 1
C64: 4
A65: ПО
A66: № | B66: Предмет | C66: Всего | D66: ВКК | E66: I КК | F66: II КК | G66: без КК | H66: N
A67: 6 | B67: Заведующий отделением | C67: =SUM(D67:H67) -> 1 | G67: 1
A68: 9 | B68: Заместитель | C68: 2 | G68: 1 | H68: 1
A69: 10 | B69: Заместитель директора | C69: 3 | D69: 1 | G69: 1 | H69: 1
A70: 12 | B70: Мастер производ.обучения | C70: 3 | G70: 2 | H70: 1
A71: 13 | B71: Методист | C71: 1 | H71: 1
A72: 16 | B72: Педагог доп.образования | C72: 1 | E72: 1
A73: 18 | B73: Педагог-организатор | C73: 1 | G73: 1
A74: 19 | B74: Педагог-психолог | C74: 1 | G74: 1
A75: 21 | B75: Преподаватель | C75: 17 | D75: 2 | E75: 4 | F75: 1 | G75: 4 | H75: 6
A76: 31 | B76: Преподаватель-организатор ОБЖ | C76: 1 | H76: 1
C77: =SUM(C67:C76) -> 31
A78: Прочие (детские дома, центры психолого-медико-социального сопровождения, межшкольный учебный комбинат, вечерняя школа закрытого типа)
A79: № | B79: Предмет | C79: Всего | D79: ВКК | E79: I КК | F79: II КК | G79: без КК | H79: N
A80: 1 | B80: Воспитатель | C80: 1 | G80: 1
C81: 1
C82: 852

Sheet 2.5 (3407)
A1: 2.5 Программа ПК, в которую включены модули, одновременно отражающие ключевые направления профессионального развития учителя (педагога): предметное, методическое, психолого-педагогическое, коммуникативное;
A2: № | B2: Предмет | C2: Всего | D2: ВКК | E2: I КК | F2: II КК | G2: без КК | H2: N
A3: 1 | B3: Директор | C3: =SUM(D3:H3) -> 55 | D3: 12 | E3: 28 | F3: 1 | G3: 5 | H3: 9
A4: 2 | B4: Заместитель директора | C4: 50 | D4: 5 | E4: 25 | G4: 12 | H4: 8
A5: 3 | B5: Заместитель | C5: 44 | D5: 18 | E5: 15 | F5: 1 | G5: 1 | H5: 9
A6: 6 | B6: Заведующий филиалом | C6: 2 | E6: 2
A7: 7 | B7: Педагог-библиотекарь | C7: 16 | D7: 2 | E7: 6 | F7: 1 | G7: 1 | H7: 6
A8: 8 | B8: Педагог-организатор | C8: 9 | E8: 3 | G8: 3 | H8: 3
A9: 9 | B9: Педагог-психолог | C9: 8 | D9: 1 | E9: 1 | F9: 1 | G9: 2 | H9: 3
A10: 10 | B10: Педагог доп. образования | C10: 7 | D10: 1 | E10: 3 | G10: 1 | H10: 2
A11: 12 | B11: Социальный педагог | C11: 1 | G11: 1
A12: 13 | B12: Воспитатель | C12: 26 | D12: 1 | E12: 7 | G12: 8 | H12: 10
A13: 14 | B13: Старший воспитатель | C13: 1 | E13: 1
A14: 26 | B14: Учитель (предмет не указан) | C14: 138 | D14: 9 | E14: 25 | F14: 1 | G14: 34 | H14: 69
A15: 27 | B15: Начальные классы | C15: 264 | D15: 65 | E15: 157 | F15: 6 | G15: 9 | H15: 27
A16: 28 | B16: Рус.яз. и лит-ра | C16: 150 | D16: 47 | E16: 74 | F16: 2 | G16: 8 | H16: 19
A17: 29 | B17: Тат.яз и лит | C17: 175 | D17: 43 | E17: 105 | F17: 4 | G17: 4 | H17: 19
A18: 31 | B18: Чувашский язык | C18: 1 | H18: 1
A19: 33 | B19: Анг.яз. | C19: 138 | D19: 22 | E19: 70 | F19: 1 | G19: 21 | H19: 24
A20: 34 | B20: Франц.яз. | C20: 1 | H20: 1
A21: 35 | B21: Немец.яз. | C21: 9 | D21: 3 | E21: 4 | G21: 1 | H21: 1
A22: 36 | B22: Математика | C22: 167 | D22: 28 | E22: 112 | F22: 2 | G22: 10 | H22: 15
A23: 37 | B23: Информатика и ИКТ | C23: 32 | D23: 5 | E23: 17 | F23: 1 | G23: 3 | H23: 6
A24: 38 | B24: История и обществознание | C24: 77 | D24: 23 | E24: 38 | F24: 1 | G24: 4 | H24: 11
A25: 39 | B25: География | C25: 41 | D25: 11 | E25: 20 | F25: 1 | G25: 2 | H25: 7
A26: 40 | B26: Физика | C26: 47 | D26: 16 | E26: 22 | G26: 1 | H26: 8
A27: 41 | B27: Химия | C27: 27 | D27: 10 | E27: 12 | G27: 3 | H27: 2
A28: 42 | B28: Биология | C28: 62 | D28: 23 | E28: 28 | F28: 1 | G28: 3 | H28: 7
A29: 43 | B29: ИЗО | C29: 20 | D29: 5 | E29: 12 | G29: 2 | H29: 1
A30: 44 | B30: Музыка | C30: 27 | D30: 6 | E30: 13 | H30: 8
A31: 45 | B31: Технология | C31: 51 | D31: 12 | E31: 27 | F31: 2 | G31: 3 | H31: 7
A32: 46 | B32: ОБЖ | C32: 16 | D32: 5 | E32: 6 | G32: 1 | H32: 4
A33: 47 | B33: Преподаватель-организатор ОБЖ | C33: 4 | D33: 1 | E33: 2 | H33: 1
A34: 48 | B34: Физ-ра | C34: 77 | D34: 16 | E34: 42 | F34: 1 | G34: 7 | H34: 11
A35: 49 | B35: Инструктор по физической культуре | C35: 1 | H35: 1
A36: 51 | B36: ОРКСЭ | C36: 7 | E36: 7
A37: 52 | B37: Классный час | C37: 2 | G37: 1 | H37: 1
A38: 53 | B38: Музыкальный руководитель | C38: 2 | E38: 1 | G38: 1
A39: 54 | B39: N | C39: 150 | D39: 35 | E39: 86 | F39: 2 | G39: 9 | H39: 18
A40: 54 | B40: Руководитель физического воспитания | C40: =SUM(D40:H40) -> 1 | G40: 1
C41: =SUM(C3:C40) -> 1,906
A42: ДОО
A43: № | B43: Предмет | C43: Всего | D43: ВКК | E43: I КК | F43: II КК | G43: без КК | H43: N
A44: 1 | B44: Заведующий | C44: =SUM(D44:H44) -> 47 | D44: 4 | E44: 13 | G44: 12 | H44: 18
A45: 3 | B45: Заместитель | C45: =SUM(D45:H45) -> 3 | E45: 1 | H45: 2
A46: 5 | B46: Заместитель заведующего | C46: 1 | H46: 1
A47: 6 | B47: Воспитатель | C47: 791 | D47: 78 | E47: 383 | F47: 7 | G47: 147 | H47: 176
A48: 7 | B48: Дошкольник | C48: 1 | H48: 1
A49: 8 | B49: Инструктор по физ.культуре | C49: 26 | D49: 2 | E49: 11 | G49: 3 | H49: 10
A50: 11 | B50: Методист | C50: 6 | D50: 2 | E50: 2 | H50: 2
A51: 12 | B51: Муз. руководитель | C51: 53 | D51: 14 | E51: 28 | G51: 6 | H51: 5
A52: 15 | B52: Педагог-психолог | C52: 15 | D52: 2 | E52: 5 | F52: 1 | G52: 4 | H52: 3
A53: 19 | B53: Старший воспитатель | C53: 34 | D53: 10 | E53: 15 | G53: 4 | H53: 5
A54: 20 | B54: Учитель | C54: 1 | H54: 1
A55: 24 | B55: Учитель-логопед | C55: =SUM(D55:H55) -> 14 | D55: 6 | E55: 3 | G55: 1 | H55: 4
A56: 25 | B56: N | C56: =SUM(D56:H56) -> 6 | G56: 2 | H56: 4
A57: 26 | B57: Тренер-преподаватель | C57: =SUM(D57:H57) -> 2 | E57: 1 | H57: 1
C58: =SUM(C44:C57) -> 1,000
A59: ДОД
A60: № | B60: Предмет | C60: Всего | D60: ВКК | E60: I КК | F60: II КК | G60: без КК | H60: N
A61: 1 | B61: Директор | C61: =SUM(D61:H61) -> 5 | D61: 1 | E61: 2 | G61: 2
A62: 2 | B62: Заместитель | C62: 6 | D62: 3 | E62: 2 | H62: 1
A63: 3 | B63: Заместитель директора | C63: 1 | E63: 1
A64: 4 | B64: Заведующий | C64: 16 | D64: 5 | E64: 6 | G64: 1 | H64: 4
A65: 5 | B65: Заведующий отделением | C65: 7 | D65: 1 | G65: 3 | H65: 3
A66: 6 | B66: Заведующий структ. подразделения | C66: 2 | H66: 2
A67: 7 | B67: Заведующий методическим кабинетом | C67: 1 | E67: 1
A68: 8 | B68: Концертмейстер | C68: 8 | E68: 4 | F68: 2 | H68: 2
A69: 9 | B69: Методист | C69: 20 | E69: 9 | F69: 1 | G69: 5 | H69: 5
A70: 10 | B70: Педагог доп.образования | C70: 141 | D70: 29 | E70: 60 | F70: 3 | G70: 13 | H70: 36
A71: 11 | B71: Педагог-организатор | C71: 10 | D71: 3 | E71: 5 | H71: 2
A72: 12 | B72: Педагог-психолог | C72: 1 | E72: 1
A73: 13 | B73: Преподаватель | C73: 36 | D73: 12 | E73: 18 | H73: 6
A74: 14 | B74: Преподаватель ДМШ | C74: 14 | D74: 5 | E74: 7 | H74: 2
A75: 16 | B75: Преподаватель ДШИ | C75: 6 | D75: 1 | E75: 3 | G75: 1 | H75: 1
A76: 19 | B76: Воспитатель | C76: 1 | D76: 1
A77: 20 | B77: N | C77: 3 | D77: 1 | G77: 2
C78: =SUM(C61:C77) -> 278
A79: Районные учреждения образования
A80: № | B80: Предмет | C80: Всего | D80: ВКК | E80: I КК | F80: II КК | G80: без КК | H80: N
A81: 2 | B81: Заместитель | C81: =SUM(D81:H81) -> 1 | D81: 1
A82: 4 | B82: Методист | C82: 7 | E82: 2 | G82: 2 | H82: 3
C83: =SUM(C81:C82) -> 8
A84: ПО
A85: № | B85: Предмет | C85: Всего | D85: ВКК | E85: I КК | F85: II КК | G85: без КК | H85: N
A86: 3 | B86: Директор | C86: =SUM(D86:H86) -> 1 | D86: 1
A87: 6 | B87: Заведующий отделением | C87: 1 | H87: 1
A88: 9 | B88: Заместитель | C88: 4 | E88: 1 | H88: 3
A89: 10 | B89: Заместитель директора | C89: 7 | E89: 2 | G89: 2 | H89: 3
A90: 12 | B90: Мастер производ.обучения | C90: 37 | D90: 4 | E90: 13 | F90: 2 | G90: 5 | H90: 13
A91: 13 | B91: Методист | C91: 1 | H91: 1
A92: 19 | B92: Педагог-психолог | C92: 1 | G92: 1
A93: 21 | B93: Преподаватель | C93: 149 | D93: 35 | E93: 40 | F93: 2 | G93: 25 | H93: 47
B94: Учитель | C94: 1 | H94: 1
A95: 25 | B95: Старший мастер | C95: 1 | H95: 1
A96: 28 | B96: Руководитель физического воспитания | C96: 1 | E96: 1
A97: 30 | B97: N | C97: 4 | G97: 2 | H97: 2
A98: 31 | B98: Специалист | C98: 1 | G98: 1
A99: 32 | B99: Начальник отдела | C99: =SUM(D99:H99) -> 1 | D99: 1
C100: =SUM(C86:C99) -> 210
A101: Прочие (детские дома, центры психолого-медико-социального сопровождения, межшкольный учебный комбинат, вечерняя школа закрытого типа)
A102: № | B102: Предмет | C102: Всего | D102: ВКК | E102: I КК | F102: II КК | G102: без КК | H102: N
A103: 1 | B103: Воспитатель | C103: =SUM(D103:H103) -> 1 | G103: 1
A104: 8 | B104: Педагог-организатор | C104: 1 | H104: 1
A105: 10 | B105: Педагог-психолог | C105: 2 | H105: 2
A106: 12 | B106: Социальный педагог | C106: 1 | H106: 1
C107: =SUM(C103:C106) -> 5
C108: 3407

Sheet 2.6 (2436)
A1: 2.6 Программа ПК, которая формирует у учителя(педагога) навыки развития у обучающихся метапредметных умений (например, креативность, критическое мышление, умение решать проблемы и др.);
A2: № | B2: Предмет | C2: Всего | D2: ВКК | E2: I КК | F2: II КК | G2: без КК | H2: N
A3: 1 | B3: Директор | C3: =SUM(D3:H3) -> 29 | D3: 10 | E3: 10 | G3: 4 | H3: 5
A4: 2 | B4: Заместитель директора | C4: 25 | D4: 6 | E4: 13 | G4: 2 | H4: 4
A5: 3 | B5: Заместитель | C5: 29 | D5: 12 | E5: 14 | G5: 2 | H5: 1
A6: 7 | B6: Педагог-библиотекарь | C6: 10 | D6: 1 | E6: 4 | H6: 5
A7: 8 | B7: Педагог-организатор | C7: 17 | D7: 1 | E7: 5 | G7: 4 | H7: 7
A8: 9 | B8: Педагог-психолог | C8: 4 | D8: 1 | E8: 1 | G8: 1 | H8: 1
A9: 10 | B9: Педагог доп. образования | C9: 6 | E9: 2 | G9: 2 | H9: 2
A10: 12 | B10: Социальный педагог | C10: 2 | D10: 1 | H10: 1
A11: 13 | B11: Воспитатель | C11: 22 | D11: 1 | E11: 5 | F11: 2 | G11: 5 | H11: 9
A12: 17 | B12: Мастер производственного обучения | C12: 1 | E12: 1
A13: 26 | B13: Учитель (предмет не указан) | C13: 116 | D13: 10 | E13: 24 | G13: 30 | H13: 52
A14: 27 | B14: Начальные классы | C14: 466 | D14: 113 | E14: 279 | F14: 5 | G14: 21 | H14: 48
A15: 28 | B15: Рус.яз. и лит-ра | C15: 166 | D15: 68 | E15: 83 | F15: 1 | G15: 6 | H15: 8
A16: 29 | B16: Тат.яз и лит | C16: 183 | D16: 47 | E16: 102 | F16: 6 | G16: 4 | H16: 24
A17: 31 | B17: Чувашский язык | C17: 2 | E17: 2
A18: 33 | B18: Анг.яз. | C18: 120 | D18: 20 | E18: 64 | F18: 1 | G18: 9 | H18: 26
A19: 35 | B19: Немец.яз. | C19: 2 | E19: 1 | H19: 1
A20: 36 | B20: Математика | C20: 143 | D20: 37 | E20: 84 | F20: 2 | G20: 5 | H20: 15
A21: 37 | B21: Информатика и ИКТ | C21: 27 | D21: 8 | E21: 15 | F21: 1 | G21: 1 | H21: 2
A22: 38 | B22: История и обществознание | C22: 89 | D22: 29 | E22: 39 | F22: 1 | G22: 4 | H22: 16
A23: 39 | B23: География | C23: 49 | D23: 9 | E23: 33 | F23: 2 | H23: 5
A24: 40 | B24: Физика | C24: 42 | D24: 11 | E24: 21 | F24: 1 | G24: 3 | H24: 6
A25: 41 | B25: Химия | C25: 26 | D25: 10 | E25: 10 | F25: 1 | G25: 3 | H25: 2
A26: 42 | B26: Биология | C26: 65 | D26: 20 | E26: 35 | G26: 3 | H26: 7
A27: 43 | B27: ИЗО | C27: 25 | D27: 5 | E27: 13 | F27: 3 | H27: 4
A28: 44 | B28: Музыка | C28: 16 | D28: 5 | E28: 9 | H28: 2
A29: 45 | B29: Технология | C29: 35 | D29: 3 | E29: 22 | F29: 2 | G29: 3 | H29: 5
A30: 46 | B30: ОБЖ | C30: 23 | D30: 5 | E30: 14 | G30: 1 | H30: 3
A31: 47 | B31: Преподаватель-организатор ОБЖ | C31: 3 | D31: 2 | E31: 1
A32: 48 | B32: Физ-ра | C32: 49 | D32: 13 | E32: 26 | F32: 1 | G32: 2 | H32: 7
A33: 51 | B33: ОРКСЭ | C33: 5 | E33: 4 | G33: 1
A34: 52 | B34: Классный час | C34: 1 | H34: 1
A35: 53 | B35: Музыкальный руководитель | C35: 1 | H35: 1
A36: 54 | B36: N | C36: 164 | D36: 46 | E36: 85 | F36: 2 | G36: 13 | H36: 18
C37: =SUM(C3:C36) -> 1,963
A38: ДОО
A39: № | B39: Предмет | C39: Всего | D39: ВКК | E39: I КК | F39: II КК | G39: без КК | H39: N
A40: 1 | B40: Заведующий | C40: =SUM(D40:H40) -> 20 | D40: 4 | E40: 8 | G40: 4 | H40: 4
A41: 6 | B41: Воспитатель | C41: =SUM(D41:H41) -> 283 | D41: 27 | E41: 128 | F41: 1 | G41: 49 | H41: 78
A42: 8 | B42: Инструктор по физ.культуре | C42: 6 | D42: 1 | E42: 2 | G42: 1 | H42: 2
A43: 12 | B43: Муз. руководитель | C43: 16 | D43: 3 | E43: 7 | G43: 2 | H43: 4
A44: 15 | B44: Педагог-психолог | C44: 3 | E44: 1 | G44: 1 | H44: 1
A45: 19 | B45: Старший воспитатель | C45: 5 | D45: 2 | E45: 3
A46: 24 | B46: Учитель-логопед | C46: 2 | E46: 1 | G46: 1
A47: 25 | B47: N | C47: 4 | D47: 2 | H47: 2
C48: =SUM(C40:C47) -> 339
A49: ДОД
A50: № | B50: Предмет | C50: Всего | D50: ВКК | E50: I КК | F50: II КК | G50: без КК | H50: N
A51: 1 | B51: Директор | C51: =SUM(D51:H51) -> 1 | D51: 1
A52: 3 | B52: Заместитель директора | C52: =SUM(D52:H52) -> 2 | E52: 1 | H52: 1
A53: 4 | B53: Заведующий | C53: 2 | D53: 2
A54: 5 | B54: Заведующий отделением | C54: 2 | G54: 1 | H54: 1
A55: 6 | B55: Заведующий структ.подразделения | C55: 2 | G55: 1 | H55: 1
A56: 8 | B56: Концертмейстер | C56: 2 | D56: 1 | H56: 1
A57: 9 | B57: Методист | C57: 2 | E57: 1 | F57: 1
A58: 10 | B58: Педагог доп.образования | C58: 41 | D58: 10 | E58: 12 | F58: 2 | G58: 5 | H58: 12
A59: 11 | B59: Педагог-организатор | C59: 2 | D59: 1 | H59: 1
A60: 13 | B60: Преподаватель | C60: 7 | D60: 2 | E60: 4 | H60: 1
A61: 14 | B61: Преподаватель ДМШ | C61: 8 | D61: 3 | E61: 3 | G61: 1 | H61: 1
A62: 16 | B62: Преподаватель ДШИ | C62: 5 | D62: 3 | E62: 1 | H62: 1
C63: =SUM(C51:C62) -> 76
A64: Районные учреждения образования | D64: ИМЦ, РОО
A65: № | B65: Предмет | C65: Всего | D65: ВКК | E65: I КК | F65: II КК | G65: без КК | H65: N
A66: 5 | B66: Старший методист | C66: =SUM(D66:H66) -> 4 | D66: 1 | E66: 2 | G66: 1
C67: =SUM(C66:C66) -> 4
A68: ПО
A69: № | B69: Предмет | C69: Всего | D69: ВКК | E69: I КК | F69: II КК | G69: без КК | H69: N
A70: 1 | B70: Воспитатель | C70: =SUM(D70:H70) -> 1 | G70: 1
A71: 3 | B71: Директор | C71: =SUM(D71:H71) -> 1 | D71: 1
A72: 9 | B72: Заместитель | C72: 2 | D72: 1 | H72: 1
A73: 10 | B73: Заместитель директора | C73: 2 | E73: 1 | H73: 1
A74: 12 | B74: Мастер производ.обучения | C74: 3 | G74: 1 | H74: 2
A75: 18 | B75: Педагог-организатор | C75: 1 | H75: 1
A76: 19 | B76: Педагог-психолог | C76: 0
A77: 21 | B77: Преподаватель | C77: 43 | D77: 6 | E77: 14 | F77: 1 | G77: 8 | H77: 14
C78: =SUM(C70:C77) -> 53
A79: Прочие (детские дома, центры психолого-медико-социального сопровождения, межшкольный учебный комбинат, вечерняя школа закрытого типа)
A80: № | B80: Предмет | C80: Всего | D80: ВКК | E80: I КК | F80: II КК | G80: без КК | H80: N
A81: 14 | B81: Учитель | C81: =SUM(D81:H81) -> 1 | G81: 1
C82: =SUM(C81:C81) -> 1
C83: 2436

Sheet 2.7 (611)
A1: 2.7 Программа ПК, которая формирует у учителя (педагога) навыки работы в поликультурной или многоязычной среде
A2: № | B2: Предмет | C2: Всего | D2: ВКК | E2: I КК | F2: II КК | G2: без КК | H2: N
A3: 1 | B3: Директор | C3: =SUM(D3:H3) -> 2 | E3: 2
A4: 2 | B4: Заместитель директора | C4: 4 | D4: 2 | E4: 1 | H4: 1
A5: 3 | B5: Заместитель | C5: 5 | D5: 2 | E5: 3
A6: 5 | B6: Заведующий отделением | C6: 1 | E6: 1
A7: 7 | B7: Педагог-библиотекарь | C7: 5 | E7: 2 | H7: 3
A8: 8 | B8: Педагог-организатор | C8: 3 | D8: 2 | G8: 1
A9: 12 | B9: Социальный педагог | C9: 1 | H9: 1
A10: 13 | B10: Воспитатель | C10: 9 | D10: 2 | E10: 3 | G10: 2 | H10: 2
A11: 26 | B11: Учитель (предмет не указан) | C11: 17 | D11: 2 | E11: 3 | G11: 7 | H11: 5
A12: 27 | B12: Начальные классы | C12: 12 | D12: 1 | E12: 8 | H12: 3
A13: 28 | B13: Рус.яз. и лит-ра | C13: 7 | D13: 4 | E13: 2 | G13: 1
A14: 29 | B14: Тат.яз и лит | C14: 92 | D14: 18 | E14: 57 | G14: 6 | H14: 11
A15: 30 | B15: Марийский язык | C15: 1 | E15: 1
A16: 31 | B16: Чувашский язык | C16: 4 | D16: 2 | E16: 2
A17: 33 | B17: Анг.яз. | C17: 23 | D17: 2 | E17: 14 | F17: 3 | G17: 1 | H17: 3
A18: 36 | B18: Математика | C18: 3 | D18: 1 | E18: 1 | H18: 1
A19: 37 | B19: Информатика и ИКТ | C19: 1 | E19: 1
A20: 38 | B20: История и обществознание | C20: 1 | D20: 1
A21: 39 | B21: География | C21: 1 | E21: 1
A22: 43 | B22: ИЗО | C22: 1 | H22: 1
A23: 44 | B23: Музыка | C23: 3 | D23: 1 | E23: 1 | H23: 1
A24: 45 | B24: Технология | C24: 1 | E24: 1
A25: 48 | B25: Физ-ра | C25: 3 | D25: 1 | E25: 2
A26: 51 | B26: ОРКСЭ | C26: 1 | D26: 1
A27: 54 | B27: N | C27: 31 | D27: 9 | E27: 18 | H27: 4
C28: =SUM(C3:C27) -> 232
A29: ДОО
A30: № | B30: Предмет | C30: Всего | D30: ВКК | E30: I КК | F30: II КК | G30: без КК | H30: N
A31: 1 | B31: Заведующий | C31: =SUM(D31:H31) -> 5 | D31: 1 | E31: 2 | G31: 1 | H31: 1
A32: 3 | B32: Заместитель | C32: =SUM(D32:H32) -> 2 | D32: 1 | E32: 1
A33: 6 | B33: Воспитатель | C33: 306 | D33: 53 | E33: 139 | F33: 4 | G33: 42 | H33: 68
A34: 7 | B34: Дошкольник | C34: 1 | E34: 1
A35: 8 | B35: Инструктор по физ.культуре | C35: 2 | D35: 1 | E35: 1
A36: 12 | B36: Муз. руководитель | C36: 8 | D36: 1 | E36: 3 | G36: 3 | H36: 1
A37: 16 | B37: Преподаватель | C37: 1 | F37: 1
A38: 17 | B38: Специалист | C38: 4 | D38: 1 | E38: 1 | H38: 2
A39: 19 | B39: Старший воспитатель | C39: 5 | D39: 2 | E39: 2 | H39: 1
A40: 20 | B40: Учитель | C40: 1 | H40: 1
A41: 24 | B41: Учитель-логопед | C41: 1 | E41: 1
A42: 25 | B42: N | C42: 7 | E42: 2 | G42: 2 | H42: 3
C43: =SUM(C31:C42) -> 343
A44: ДОД
A45: № | B45: Предмет | C45: Всего | D45: ВКК | E45: I КК | F45: II КК | G45: без КК | H45: N
A46: 5 | B46: Заведующий отделением | C46: =SUM(D46:H46) -> 1 | D46: 1
A47: 9 | B47: Методист | C47: 2 | G47: 1 | H47: 1
A48: 10 | B48: Педагог доп.образования | C48: 6 | D48: 1 | E48: 2 | H48: 3
A49: 13 | B49: Преподаватель | C49: 9 | D49: 4 | E49: 4 | F49: 1
A50: 16 | B50: Преподаватель ДШИ | C50: 2 | E50: 1 | H50: 1
C51: =SUM(C46:C50) -> 20
A52: Районные учреждения образования
A53: № | B53: Предмет | C53: Всего | D53: ВКК | E53: I КК | F53: II КК | G53: без КК | H53: N
A54: 4 | B54: Методист | C54: 2 | E54: 1 | H54: 1
C55: 2
A56: ПО
A57: № | B57: Предмет | C57: Всего | D57: ВКК | E57: I КК | F57: II КК | G57: без КК | H57: N
A58: 18 | B58: Педагог-организатор | C58: =SUM(D58:H58) -> 1 | H58: 1
A59: 21 | B59: Преподаватель | C59: 13 | E59: 8 | F59: 1 | G59: 3 | H59: 1
C60: =SUM(C58:C59) -> 14
B62: ИТОГО | C62: 611

Sheet 2.8 (801)
A1: 2.8 Программа ПК, которая формирует у учителя (педагога) навыки в области цифровых технологий применительно к работе учителя (педагога);
A2: № | B2: Предмет | C2: Всего | D2: ВКК | E2: I КК | F2: II КК | G2: без КК | H2: N
A3: 1 | B3: Директор | C3: =SUM(D3:H3) -> 9 | D3: 2 | E3: 7
A4: 2 | B4: Заместитель директора | C4: 12 | D4: 3 | E4: 3 | G4: 2 | H4: 4
A5: 3 | B5: Заместитель | C5: 10 | D5: 1 | E5: 6 | G5: 1 | H5: 2
A6: 7 | B6: Педагог-библиотекарь | C6: 17 | D6: 1 | E6: 5 | G6: 1 | H6: 10
A7: 8 | B7: Педагог-организатор | C7: 5 | E7: 2 | G7: 2 | H7: 1
A8: 11 | B8: Старший педагог доп.образования | C8: 1 | D8: 1
A9: 13 | B9: Воспитатель | C9: 7 | E9: 3 | H9: 4
A10: 18 | B10: Методист | C10: 1 | H10: 1
A11: 20 | B11: Тьютор | C11: 1 | E11: 1
A12: 21 | B12: Учитель-дефектолог | C12: 2 | E12: 1 | G12: 1
A13: 22 | B13: Учитель-дефектолог (олигофренопедагог) | C13: 1 | E13: 1
A14: 26 | B14: Учитель (предмет не указан) | C14: 22 | D14: 2 | E14: 4 | G14: 6 | H14: 10
A15: 27 | B15: Начальные классы | C15: 75 | D15: 12 | E15: 42 | F15: 1 | G15: 8 | H15: 12
A16: 28 | B16: Рус.яз. и лит-ра | C16: 33 | D16: 13 | E16: 14 | G16: 3 | H16: 3
A17: 29 | B17: Тат.яз и лит | C17: 43 | D17: 12 | E17: 19 | F17: 2 | G17: 3 | H17: 7
A18: 33 | B18: Анг.яз. | C18: 43 | D18: 6 | E18: 21 | G18: 2 | H18: 14
A19: 35 | B19: Немец.яз. | C19: 2 | D19: 1 | E19: 1
A20: 36 | B20: Математика | C20: 62 | D20: 15 | E20: 34 | G20: 2 | H20: 11
A21: 37 | B21: Информатика и ИКТ | C21: 21 | D21: 6 | E21: 8 | F21: 1 | G21: 1 | H21: 5
A22: 38 | B22: История и обществознание | C22: 17 | D22: 2 | E22: 9 | H22: 6
A23: 39 | B23: География | C23: 15 | D23: 3 | E23: 11 | F23: 1
A24: 40 | B24: Физика | C24: 14 | D24: 2 | E24: 9 | G24: 3
A25: 41 | B25: Химия | C25: 8 | D25: 3 | E25: 5
A26: 42 | B26: Биология | C26: 13 | D26: 5 | E26: 6 | G26: 1 | H26: 1
A27: 43 | B27: ИЗО | C27: 10 | D27: 2 | E27: 6 | G27: 2
A28: 44 | B28: Музыка | C28: 8 | D28: 4 | E28: 4
A29: 45 | B29: Технология | C29: 20 | D29: 4 | E29: 9 | G29: 1 | H29: 6
A30: 46 | B30: ОБЖ | C30: 5 | E30: 4 | H30: 1
A31: 47 | B31: Преподаватель-организатор ОБЖ | C31: 2 | D31: 1 | E31: 1
A32: 48 | B32: Физ-ра | C32: 10 | D32: 3 | E32: 7
A33: 51 | B33: ОРКСЭ | C33: 3 | D33: 1 | E33: 2
A34: 52 | B34: Классный час | C34: 1 | D34: 1
A35: 54 | B35: N | C35: 46 | D35: 17 | E35: 24 | G35: 1 | H35: 4
C36: =SUM(C3:C35) -> 539
A37: ДОО
A38: № | B38: Предмет | C38: Всего | D38: ВКК | E38: I КК | F38: II КК | G38: без КК | H38: N
A39: 1 | B39: Заведующий | C39: =SUM(D39:H39) -> 7 | E39: 5 | H39: 2
A40: 6 | B40: Воспитатель | C40: =SUM(D40:H40) -> 130 | D40: 8 | E40: 64 | G40: 19 | H40: 39
A41: 12 | B41: Муз. руководитель | C41: 9 | D41: 4 | E41: 2 | G41: 2 | H41: 1
A42: 19 | B42: Старший воспитатель | C42: 5 | D42: 3 | E42: 2
A43: 24 | B43: Учитель-логопед | C43: 3 | D43: 1 | E43: 1 | G43: 1
C44: =SUM(C39:C43) -> 154
A45: ДОД
A46: № | B46: Предмет | C46: Всего | D46: ВКК | E46: I КК | F46: II КК | G46: без КК | H46: N
A47: 1 | B47: Директор | C47: =SUM(D47:H47) -> 1 | D47: 1
A48: 2 | B48: Заместитель | C48: =SUM(D48:H48) -> 4 | D48: 2 | E48: 2
A49: 3 | B49: Заместитель директора | C49: 1 | D49: 1
A50: 4 | B50: Заведующий | C50: 1 | H50: 1
A51: 5 | B51: Заведующий отделением | C51: 1 | H51: 1
A52: 8 | B52: Концертмейстер | C52: 1 | D52: 1
A53: 9 | B53: Методист | C53: 1 | H53: 1
A54: 10 | B54: Педагог доп.образования | C54: 20 | D54: 2 | E54: 8 | F54: 1 | G54: 2 | H54: 7
A55: 13 | B55: Преподаватель | C55: 7 | D55: 2 | E55: 4 | G55: 1
A56: 14 | B56: Преподаватель ДМШ | C56: 12 | D56: 4 | E56: 5 | G56: 1 | H56: 2
A57: 16 | B57: Преподаватель ДШИ | C57: 1 | D57: 1
A58: 18 | B58: Тренер-преподаватель | C58: 1 | E58: 1
C59: =SUM(C47:C58) -> 51
A60: Районные учреждения образования | D60: ИМЦ, РОО
A61: № | B61: Предмет | C61: Всего | D61: ВКК | E61: I КК | F61: II КК | G61: без КК | H61: N
A62: 4 | B62: Методист | C62: =SUM(D62:H62) -> 4 | E62: 2 | G62: 1 | H62: 1
C63: =SUM(C62:C62) -> 4
A64: ПО
A65: № | B65: Предмет | C65: Всего | D65: ВКК | E65: I КК | F65: II КК | G65: без КК | H65: N
A66: 9 | B66: Заместитель | C66: =SUM(D66:H66) -> 3 | D66: 1 | H66: 2
A67: 10 | B67: Заместитель директора | C67: 2 | E67: 1 | G67: 1
A68: 12 | B68: Мастер производ.обучения | C68: 9 | D68: 1 | E68: 4 | G68: 1 | H68: 3
A69: 21 | B69: Преподаватель | C69: 36 | D69: 7 | E69: 7 | F69: 1 | G69: 11 | H69: 10
A70: 30 | B70: N | C70: 3 | F70: 1 | G70: 2
C71: =SUM(C66:C70) -> 53
C72: 801

Sheet 2.9 (1448)
A1: 2.9 Программа ПК, которая формирует у учителя (педагога) навыки обучения детей с ограниченными возможностями здоровья (ОВЗ);
A2: № | B2: Предмет | C2: Всего | D2: ВКК | E2: I КК | F2: II КК | G2: без КК | H2: N
A3: 1 | B3: Директор | C3: =SUM(D3:H3) -> 26 | D3: 7 | E3: 16 | H3: 3
A4: 2 | B4: Заместитель директора | C4: 13 | D4: 3 | E4: 6 | G4: 1 | H4: 3
A5: 3 | B5: Заместитель | C5: 20 | D5: 3 | E5: 8 | H5: 9
A6: 7 | B6: Педагог-библиотекарь | C6: 9 | E6: 4 | H6: 5
A7: 8 | B7: Педагог-организатор | C7: 6 | E7: 1 | H7: 5
A8: 9 | B8: Педагог-психолог | C8: 11 | D8: 2 | E8: 2 | G8: 3 | H8: 4
A9: 10 | B9: Педагог доп. образования | C9: 2 | G9: 1 | H9: 1
A10: 12 | B10: Социальный педагог | C10: 6 | D10: 1 | E10: 2 | G10: 2 | H10: 1
A11: 13 | B11: Воспитатель | C11: 81 | D11: 4 | E11: 37 | F11: 2 | G11: 17 | H11: 21
A12: 15 | B12: Специалист | C12: 1 | D12: 1
A13: 17 | B13: Мастер производственного обучения | C13: 1 | E13: 1
A14: 21 | B14: Учитель-дефектолог | C14: 68 | D14: 12 | E14: 40 | G14: 5 | H14: 11
A15: 22 | B15: Учитель-дефектолог (олигофренопедагог) | C15: 35 | D15: 3 | E15: 20 | F15: 2 | G15: 3 | H15: 7
A16: 23 | B16: Учитель-дефектолог (сурдопедагог) | C16: 8 | D16: 1 | E16: 4 | G16: 2 | H16: 1
A17: 24 | B17: Учитель-дефектолог (тифлопедагог) | C17: 1 | G17: 1
A18: 25 | B18: Учитель-логопед | C18: 16 | D18: 3 | E18: 10 | G18: 2 | H18: 1
A19: 26 | B19: Учитель (предмет не указан) | C19: 69 | D19: 2 | E19: 12 | F19: 1 | G19: 16 | H19: 38
A20: 27 | B20: Начальные классы | C20: 188 | D20: 40 | E20: 117 | F20: 4 | G20: 9 | H20: 18
A21: 28 | B21: Рус.яз. и лит-ра | C21: 40 | D21: 6 | E21: 29 | F21: 1 | H21: 4
A22: 29 | B22: Тат.яз и лит | C22: 45 | D22: 7 | E22: 30 | F22: 1 | G22: 3 | H22: 4
A23: 33 | B23: Анг.яз. | C23: 20 | D23: 1 | E23: 9 | F23: 1 | G23: 6 | H23: 3
A24: 34 | B24: Франц.яз. | C24: 1 | D24: 1
A25: 36 | B25: Математика | C25: 33 | D25: 2 | E25: 28 | G25: 1 | H25: 2
A26: 37 | B26: Информатика и ИКТ | C26: 7 | D26: 1 | E26: 2 | H26: 4
A27: 38 | B27: История и обществознание | C27: 22 | D27: 3 | E27: 17 | H27: 2
A28: 39 | B28: География | C28: 18 | D28: 4 | E28: 9 | G28: 1 | H28: 4
A29: 40 | B29: Физика | C29: 11 | D29: 2 | E29: 6 | H29: 3
A30: 41 | B30: Химия | C30: 6 | D30: 2 | E30: 3 | H30: 1
A31: 42 | B31: Биология | C31: 7 | D31: 4 | E31: 3
A32: 43 | B32: ИЗО | C32: 7 | E32: 3 | F32: 3 | H32: 1
A33: 44 | B33: Музыка | C33: 7 | D33: 1 | E33: 5 | H33: 1
A34: 45 | B34: Технология | C34: 14 | D34: 4 | E34: 5 | G34: 2 | H34: 3
A35: 46 | B35: ОБЖ | C35: 3 | E35: 3
A36: 47 | B36: Преподаватель-организатор ОБЖ | C36: 3 | D36: 1 | E36: 1 | G36: 1
A37: 48 | B37: Физ-ра | C37: 49 | D37: 12 | E37: 26 | F37: 2 | G37: 3 | H37: 6
A38: 49 | B38: Инструктор по физической культуре | C38: 2 | E38: 1 | H38: 1
A39: 51 | B39: ОРКСЭ | C39: 4 | D39: 1 | E39: 3
A40: 53 | B40: Музыкальный руководитель | C40: 1 | E40: 1
A41: 54 | B41: N | C41: 60 | D41: 10 | E41: 37 | F41: 2 | G41: 6 | H41: 5
C42: =SUM(C3:C41) -> 921
A43: ДОО
A44: № | B44: Предмет | C44: Всего | D44: ВКК | E44: I КК | F44: II КК | G44: без КК | H44: N
A45: 1 | B45: Заведующий | C45: =SUM(D45:H45) -> 27 | E45: 10 | G45: 6 | H45: 11
A46: 6 | B46: Воспитатель | C46: =SUM(D46:H46) -> 262 | D46: 36 | E46: 111 | F46: 3 | G46: 46 | H46: 66
A47: 8 | B47: Инструктор по физ.культуре | C47: 17 | D47: 5 | E47: 4 | F47: 1 | G47: 4 | H47: 3
A48: 11 | B48: Методист | C48: 1 | E48: 1
A49: 12 | B49: Муз. руководитель | C49: 17 | D49: 5 | E49: 4 | G49: 4 | H49: 4
A50: 15 | B50: Педагог-психолог | C50: 28 | D50: 4 | E50: 12 | G50: 6 | H50: 6
A51: 17 | B51: Специалист | C51: 3 | E51: 2 | H51: 1
A52: 19 | B52: Старший воспитатель | C52: 8 | E52: 6 | G52: 1 | H52: 1
A53: 21 | B53: Учитель-дефектолог | C53: 11 | D53: 5 | E53: 3 | G53: 1 | H53: 2
A54: 24 | B54: Учитель-логопед | C54: 80 | D54: 21 | E54: 32 | G54: 13 | H54: 14
A55: 25 | B55: N | C55: 10 | D55: 1 | E55: 5 | H55: 4
C56: =SUM(C45:C55) -> 464
A57: ДОД
A58: № | B58: Предмет | C58: Всего | D58: ВКК | E58: I КК | F58: II КК | G58: без КК | H58: N
A59: 2 | B59: Заместитель | C59: =SUM(D59:H59) -> 1 | H59: 1
A60: 4 | B60: Заведующий | C60: 1 | H60: 1
A61: 5 | B61: Заведующий отделением | C61: 1 | H61: 1
A62: 9 | B62: Методист | C62: 2 | E62: 2
A63: 10 | B63: Педагог доп.образования | C63: 19 | D63: 3 | E63: 7 | G63: 2 | H63: 7
A64: 13 | B64: Преподаватель | C64: 3 | D64: 1 | E64: 2
A65: 14 | B65: Преподаватель ДМШ | C65: 2 | E65: 2
A66: 16 | B66: Преподаватель ДШИ | C66: 1 | E66: 1
C67: =SUM(C59:C66) -> 30
A68: Районные учреждения образования | D68: ИМЦ, РОО
A69: № | B69: Предмет | C69: Всего | D69: ВКК | E69: I КК | F69: II КК | G69: без КК | H69: N
A70: 3 | B70: Педагог-психолог | C70: =SUM(D70:H70) -> 1 | H70: 1
C71: =SUM(C70:C70) -> 1
A72: ПО
A73: № | B73: Предмет | C73: Всего | D73: ВКК | E73: I КК | F73: II КК | G73: без КК | H73: N
A74: 6 | B74: Заведующий отделением | C74: =SUM(D74:H74) -> 1 | E74: 1
A75: 12 | B75: Мастер производ.обучения | C75: 7 | D75: 2 | E75: 1 | G75: 2 | H75: 2
A76: 13 | B76: Методист | C76: 1 | D76: 1
A77: 18 | B77: Педагог-организатор | C77: 1 | G77: 1
A78: 19 | B78: Педагог-психолог | C78: 1 | H78: 1
A79: 21 | B79: Преподаватель | C79: 14 | D79: 5 | E79: 2 | F79: 1 | G79: 2 | H79: 4
A80: 24 | B80: Социальный педагог | C80: 1 | H80: 1
A81: 28 | B81: Руководитель физического воспитания | C81: 4 | D81: 1 | E81: 2 | H81: 1
C82: =SUM(C74:C81) -> 30
A83: Прочие (детские дома, центры психолого-медико-социального сопровождения, межшкольный учебный комбинат, вечерняя школа закрытого типа)
A84: № | B84: Предмет | C84: Всего | D84: ВКК | E84: I КК | F84: II КК | G84: без КК | H84: N
A85: 3 | B85: Замиститель | C85: =SUM(D85:H85) -> 1 | H85: 1
A86: 16 | B86: Учитель-логопед | C86: 1 | E86: 1
C87: =SUM(C85:C86) -> 2
C88: 1448

Sheet 2.10 (500)
A1: 2.10 Программа ПК, которая развивает у учителя навыки оценивания обучающихся;
A2: № | B2: Предмет | C2: Всего | D2: ВКК | E2: I КК | F2: II КК | G2: без КК | H2: N
A3: 1 | B3: Директор | C3: =SUM(D3:H3) -> 10 | D3: 3 | E3: 7
A4: 2 | B4: Заместитель директора | C4: 9 | D4: 1 | E4: 4 | G4: 3 | H4: 1
A5: 3 | B5: Заместитель | C5: 14 | D5: 4 | E5: 6 | H5: 4
A6: 7 | B6: Педагог-библиотекарь | C6: 2 | D6: 1 | E6: 1
A7: 9 | B7: Педагог-психолог | C7: 2 | H7: 2
A8: 10 | B8: Педагог доп. образования | C8: 2 | D8: 1 | E8: 1
A9: 13 | B9: Воспитатель | C9: 4 | D9: 1 | G9: 1 | H9: 2
A10: 26 | B10: Учитель (предмет не указан) | C10: 39 | E10: 8 | F10: 1 | G10: 11 | H10: 19
A11: 27 | B11: Начальные классы | C11: 128 | D11: 34 | E11: 71 | F11: 2 | G11: 5 | H11: 16
A12: 28 | B12: Рус.яз. и лит-ра | C12: 20 | D12: 2 | E12: 14 | H12: 4
A13: 29 | B13: Тат.яз и лит | C13: 25 | D13: 2 | E13: 16 | F13: 1 | G13: 1 | H13: 5
A14: 31 | B14: Чувашский язык | C14: 2 | E14: 1 | G14: 1
A15: 33 | B15: Анг.яз. | C15: 13 | D15: 1 | E15: 6 | G15: 3 | H15: 3
A16: 35 | B16: Немец.яз. | C16: 2 | E16: 2
A17: 36 | B17: Математика | C17: 35 | D17: 10 | E17: 16 | F17: 2 | G17: 1 | H17: 6
A18: 37 | B18: Информатика и ИКТ | C18: 4 | E18: 3 | H18: 1
A19: 38 | B19: История и обществознание | C19: 15 | D19: 5 | E19: 5 | G19: 1 | H19: 4
A20: 39 | B20: География | C20: 10 | E20: 4 | F20: 1 | H20: 5
A21: 40 | B21: Физика | C21: 4 | D21: 2 | F21: 2
A22: 41 | B22: Химия | C22: 2 | E22: 2
A23: 42 | B23: Биология | C23: 5 | D23: 2 | E23: 3
A24: 43 | B24: ИЗО | C24: 1 | G24: 1
A25: 44 | B25: Музыка | C25: 2 | D25: 1 | H25: 1
A26: 45 | B26: Технология | C26: 9 | D26: 4 | E26: 4 | H26: 1
A27: 46 | B27: ОБЖ | C27: 4 | E27: 3 | H27: 1
A28: 48 | B28: Физ-ра | C28: 13 | D28: 2 | E28: 8 | F28: 2 | G28: 1
A29: 51 | B29: ОРКСЭ | C29: 3 | E29: 3
A30: 54 | B30: N | C30: 39 | D30: 9 | E30: 27 | G30: 1 | H30: 2
C31: =SUM(C3:C30) -> 418
A32: ДОО
A33: № | B33: Предмет | C33: Всего | D33: ВКК | E33: I КК | F33: II КК | G33: без КК | H33: N
A34: 1 | B34: Заведующий | C34: =SUM(D34:H34) -> 3 | D34: 1 | E34: 1 | H34: 1
A35: 2 | B35: Директор | C35: =SUM(D35:H35) -> 1 | E35: 1
A36: 6 | B36: Воспитатель | C36: 31 | D36: 2 | E36: 16 | G36: 8 | H36: 5
A37: 8 | B37: Инструктор по физ.культуре | C37: 1 | H37: 1
A38: 12 | B38: Муз. руководитель | C38: 2 | E38: 1 | H38: 1
A39: 19 | B39: Старший воспитатель | C39: 1 | G39: 1
A40: 20 | B40: Учитель | C40: 1 | H40: 1
A41: 25 | B41: N | C41: 1 | D41: 1
C42: =SUM(C34:C41) -> 41
A43: ДОД
A44: № | B44: Предмет | C44: Всего | D44: ВКК | E44: I КК | F44: II КК | G44: без КК | H44: N
A45: 2 | B45: Заместитель | C45: =SUM(D45:H45) -> 2 | D45: 1 | H45: 1
A46: 9 | B46: Методист | C46: 2 | G46: 1 | H46: 1
A47: 10 | B47: Педагог доп.образования | C47: 13 | D47: 3 | E47: 2 | G47: 2 | H47: 6
A48: 14 | B48: Преподаватель ДМШ | C48: 4 | H48: 4
A49: 16 | B49: Преподаватель ДШИ | C49: 2 | D49: 1 | E49: 1
A50: 18 | B50: Воспитатель | C50: 1 | E50: 1
C51: =SUM(C45:C50) -> 24
A52: ПО
A53: № | B53: Предмет | C53: Всего | D53: ВКК | E53: I КК | F53: II КК | G53: без КК | H53: N
A54: 12 | B54: Мастер производ.обучения | C54: =SUM(D54:H54) -> 5 | E54: 2 | G54: 2 | H54: 1
A55: 21 | B55: Преподаватель | C55: 12 | D55: 4 | E55: 1 | G55: 3 | H55: 4
C56: =SUM(C54:C55) -> 17
C57: 500

Sheet 2.11 (125)
A1: 2.11 Программа ПК по подготовке тьюторов в области цифровых технологий; Программа ПК по подготовке тьюторов в области цифровых технологий.
A2: № | B2: Предмет | C2: Всего | D2: ВКК | E2: I КК | F2: II КК | G2: без КК | H2: N
A3: 1 | B3: Директор | C3: =SUM(D3:H3) -> 2 | D3: 1 | E3: 1
A4: 2 | B4: Заместитель директора | C4: 4 | D4: 2 | E4: 2
A5: 3 | B5: Заместитель | C5: 5 | D5: 1 | E5: 3 | H5: 1
A6: 7 | B6: Педагог-библиотекарь | C6: 2 | H6: 2
A7: 13 | B7: Воспитатель | C7: 3 | E7: 1 | G7: 2
A8: 25 | B8: Учитель-логопед | C8: 2 | E8: 1 | G8: 1
A9: 26 | B9: Учитель (предмет не указан) | C9: 6 | D9: 1 | G9: 3 | H9: 2
A10: 27 | B10: Начальные классы | C10: 9 | D10: 4 | E10: 3 | G10: 1 | H10: 1
A11: 28 | B11: Рус.яз. и лит-ра | C11: 5 | D11: 3 | E11: 1 | H11: 1
A12: 29 | B12: Тат.яз и лит | C12: 2 | D12: 1 | E12: 1
A13: 33 | B13: Анг.яз. | C13: 5 | D13: 2 | E13: 2 | H13: 1
A14: 36 | B14: Математика | C14: 5 | D14: 2 | E14: 2 | H14: 1
A15: 37 | B15: Информатика и ИКТ | C15: 12 | D15: 2 | E15: 6 | G15: 2 | H15: 2
A16: 38 | B16: История и обществознание | C16: 2 | D16: 1 | E16: 1
A17: 39 | B17: География | C17: 0
A18: 40 | B18: Физика | C18: 4 | D18: 1 | E18: 3
A19: 42 | B19: Биология | C19: 2 | E19: 2
A20: 44 | B20: Музыка | C20: 1 | E20: 1
A21: 45 | B21: Технология | C21: 3 | D21: 1 | H21: 2
A22: 46 | B22: ОБЖ | C22: 1 | E22: 1
A23: 48 | B23: Физ-ра | C23: 1 | E23: 1
A24: 54 | B24: N | C24: 8 | D24: 1 | E24: 4 | G24: 1 | H24: 2
C25: =SUM(C3:C24) -> 84
A26: ДОО
A27: № | B27: Предмет | C27: Всего | D27: ВКК | E27: I КК | F27: II КК | G27: без КК | H27: N
A28: 1 | B28: Заведующий | C28: =SUM(D28:H28) -> 1 | E28: 1
A29: 6 | B29: Воспитатель | C29: =SUM(D29:H29) -> 20 | D29: 1 | E29: 14 | G29: 1 | H29: 4
A30: 12 | B30: Муз. руководитель | C30: 3 | D30: 1 | E30: 2
A31: 19 | B31: Старший воспитатель | C31: 1 | E31: 1
A32: 24 | B32: Учитель-логопед | C32: 1 | E32: 1
C33: =SUM(C28:C32) -> 26
A34: ДОД
A35: № | B35: Предмет | C35: Всего | D35: ВКК | E35: I КК | F35: II КК | G35: без КК | H35: N
A36: 2 | B36: Заместитель | C36: =SUM(D36:H36) -> 1 | H36: 1
A37: 4 | B37: Заведующий | C37: 2 | H37: 2
A38: 9 | B38: Методист | C38: 2 | H38: 2
A39: 10 | B39: Педагог доп.образования | C39: 2 | F39: 1 | H39: 1
C40: =SUM(C36:C39) -> 7
A41: Районные учреждения образования | D41: ИМЦ, РОО
A42: № | B42: Предмет | C42: Всего | D42: ВКК | E42: I КК | F42: II КК | G42: без КК | H42: N
A43: 4 | B43: Методист | C43: =SUM(D43:H43) -> 2 | E43: 1 | H43: 1
C44: =SUM(C43:C43) -> 2
A45: ПО
A46: № | B46: Предмет | C46: Всего | D46: ВКК | E46: I КК | F46: II КК | G46: без КК | H46: N
A47: 4 | B47: Заведующий | C47: =SUM(D47:H47) -> 2 | D47: 1 | H47: 1
A48: 12 | B48: Мастер производ.обучения | C48: 1 | E48: 1
A49: 16 | B49: Педагог доп.образования | C49: 1 | H49: 1
A50: 21 | B50: Преподаватель | C50: 2 | D50: 1 | E50: 1
C51: =SUM(C47:C50) -> 6
C52: 125

Sheet 2.12 (283)
A1: 2.12 Дистанционная программа ПК для отдельных категорий участников: старших воспитателей, учителей обществознания, географии, педагогов ДОД;
A2: № | B2: Предмет | C2: Всего | D2: ВКК | E2: I КК | F2: II КК | G2: без КК | H2: N
A3: 1 | B3: Директор | C3: =SUM(D3:H3) -> 1 | H3: 1
A4: 2 | B4: Заместитель директора | C4: 3 | E4: 1 | G4: 1 | H4: 1
A5: 3 | B5: Заместитель | C5: 1 | D5: 1
A6: 7 | B6: Педагог-библиотекарь | C6: 4 | F6: 1 | H6: 3
A7: 8 | B7: Педагог-организатор | C7: 4 | E7: 3 | H7: 1
A8: 10 | B8: Педагог доп. образования | C8: 5 | E8: 2 | G8: 1 | H8: 2
A9: 13 | B9: Воспитатель | C9: 11 | E9: 4 | F9: 2 | G9: 2 | H9: 3
A10: 26 | B10: Учитель (предмет не указан) | C10: 5 | D10: 1 | E10: 2 | G10: 2
A11: 27 | B11: Начальные классы | C11: 1 | E11: 1
A12: 28 | B12: Рус.яз. и лит-ра | C12: 2 | D12: 1 | E12: 1
A13: 29 | B13: Тат.яз и лит | C13: 6 | D13: 1 | E13: 3 | F13: 1 | H13: 1
A14: 33 | B14: Анг.яз. | C14: 2 | E14: 1 | H14: 1
A15: 36 | B15: Математика | C15: 1 | D15: 1
A16: 38 | B16: История и обществознание | C16: 20 | D16: 6 | E16: 10 | H16: 4
A17: 39 | B17: География | C17: 18 | D17: 3 | E17: 12 | G17: 1 | H17: 2
A18: 40 | B18: Физика | C18: 1 | G18: 1
A19: 41 | B19: Химия | C19: 2 | G19: 1 | H19: 1
A20: 42 | B20: Биология | C20: 2 | E20: 1 | H20: 1
A21: 44 | B21: Музыка | C21: 3 | E21: 2 | H21: 1
A22: 45 | B22: Технология | C22: 2 | E22: 1 | H22: 1
A23: 50 | B23: Тренер-преподаватель | C23: 1 | H23: 1
A24: 54 | B24: N | C24: 13 | D24: 1 | E24: 9 | G24: 1 | H24: 2
C25: =SUM(C3:C24) -> 108
A26: ДОО
A27: № | B27: Предмет | C27: Всего | D27: ВКК | E27: I КК | F27: II КК | G27: без КК | H27: N
A28: 1 | B28: Заведующий | C28: =SUM(D28:H28) -> 9 | D28: 1 | E28: 5 | G28: 2 | H28: 1
A29: 3 | B29: Заместитель | C29: =SUM(D29:H29) -> 4 | D29: 1 | E29: 2 | H29: 1
A30: 6 | B30: Воспитатель | C30: 31 | D30: 6 | E30: 14 | F30: 1 | G30: 1 | H30: 9
A31: 8 | B31: Инструктор по физ.культуре | C31: 1 | H31: 1
A32: 11 | B32: Методист | C32: 8 | D32: 5 | E32: 3
A33: 13 | B33: Педагог дополнительного образования | C33: 1 | E33: 1
A34: 15 | B34: Педагог-психолог | C34: 1 | E34: 1
A35: 19 | B35: Старший воспитатель | C35: 52 | D35: 16 | E35: 28 | F35: 1 | H35: 7
A36: 25 | B36: N | C36: 2 | D36: 1 | H36: 1
C37: =SUM(C28:C36) -> 109
A38: ДОД
A39: № | B39: Предмет | C39: Всего | D39: ВКК | E39: I КК | F39: II КК | G39: без КК | H39: N
A40: 1 | B40: Директор | C40: =SUM(D40:H40) -> 3 | D40: 3
A41: 2 | B41: Заместитель | C41: =SUM(D41:H41) -> 2 | E41: 1 | H41: 1
A42: 5 | B42: Заведующий отделением | C42: 1 | H42: 1
A43: 9 | B43: Методист | C43: 8 | D43: 1 | E43: 2 | H43: 5
A44: 10 | B44: Педагог доп.образования | C44: 29 | D44: 8 | E44: 13 | G44: 4 | H44: 4
A45: 11 | B45: Педагог-организатор | C45: 1 | H45: 1
A46: 13 | B46: Преподаватель | C46: 2 | E46: 1 | H46: 1
A47: 14 | B47: Преподаватель ДМШ | C47: 4 | D47: 1 | E47: 1 | H47: 2
A48: 19 | B48: N | C48: 1 | D48: 1
C49: =SUM(C40:C48) -> 51
A50: Районные учреждения образования | D50: ИМЦ, РОО
A51: № | B51: Предмет | C51: Всего | D51: ВКК | E51: I КК | F51: II КК | G51: без КК | H51: N
A52: 4 | B52: Методист | C52: =SUM(D52:H52) -> 2 | E52: 1 | H52: 1
C53: =SUM(C52:C52) -> 2
A54: ПО
A55: № | B55: Предмет | C55: Всего | D55: ВКК | E55: I КК | F55: II КК | G55: без КК | H55: N
A56: 1 | B56: Воспитатель | C56: =SUM(D56:H56) -> 5 | E56: 2 | G56: 1 | H56: 2
A57: 12 | B57: Мастер производ.обучения | C57: =SUM(D57:H57) -> 1 | E57: 1
A58: 16 | B58: Педагог доп.образования | C58: 2 | E58: 2
A59: 21 | B59: Преподаватель | C59: 4 | E59: 1 | G59: 3
C60: =SUM(C56:C59) -> 12
A61: Прочие (детские дома, центры психолого-медико-социального сопровождения, межшкольный учебный комбинат, вечерняя школа закрытого типа)
A62: № | B62: Предмет | C62: Всего | D62: ВКК | E62: I КК | F62: II КК | G62: без КК | H62: N
A63: 1 | B63: Воспитатель | C63: =SUM(D63:H63) -> 1 | H63: 1
C64: =SUM(C63:C63) -> 1
C65: 283

Sheet 2.13 (1733)
A1: 2.13 Иное
A2: № | B2: Предмет | C2: Всего | D2: ВКК | E2: I КК | F2: II КК | G2: без КК | H2: N
A3: 1 | B3: Директор | C3: =SUM(D3:H3) -> 57 | D3: 8 | E3: 32 | F3: 1 | G3: 5 | H3: 11
A4: 2 | B4: Заместитель директора | C4: 45 | D4: 8 | E4: 20 | G4: 6 | H4: 11
A5: 3 | B5: Заместитель | C5: 52 | D5: 13 | E5: 26 | G5: 2 | H5: 11
A6: 7 | B6: Педагог-библиотекарь | C6: 122 | D6: 10 | E6: 29 | F6: 1 | G6: 12 | H6: 70
A7: 8 | B7: Педагог-организатор | C7: 25 | D7: 1 | E7: 14 | G7: 3 | H7: 7
A8: 9 | B8: Педагог-психолог | C8: 16 | D8: 1 | E8: 7 | G8: 3 | H8: 5
A9: 10 | B9: Педагог доп. образования | C9: 10 | D9: 3 | E9: 3 | F9: 2 | G9: 1 | H9: 1
A10: 12 | B10: Социальный педагог | C10: 4 | D10: 1 | E10: 1 | F10: 1 | G10: 1
A11: 13 | B11: Воспитатель | C11: 67 | D11: 4 | E11: 30 | F11: 2 | G11: 10 | H11: 21
A12: 15 | B12: Специалист | C12: 1 | E12: 1
A13: 25 | B13: Учитель-логопед | C13: 1 | E13: 1
A14: 26 | B14: Учитель (предмет не указан) | C14: 29 | D14: 1 | E14: 9 | G14: 7 | H14: 12
A15: 27 | B15: Начальные классы | C15: 18 | D15: 3 | E15: 9 | F15: 1 | G15: 3 | H15: 2
A16: 28 | B16: Рус.яз. и лит-ра | C16: 18 | D16: 3 | E16: 13 | G16: 1 | H16: 1
A17: 29 | B17: Тат.яз и лит | C17: 34 | D17: 5 | E17: 25 | F17: 1 | G17: 1 | H17: 2
A18: 33 | B18: Анг.яз. | C18: 10 | E18: 6 | F18: 1 | G18: 1 | H18: 2
A19: 36 | B19: Математика | C19: 12 | D19: 1 | E19: 11
A20: 37 | B20: Информатика и ИКТ | C20: 2 | E20: 1 | G20: 1
A21: 38 | B21: История и обществознание | C21: 10 | D21: 1 | E21: 7 | H21: 2
A22: 39 | B22: География | C22: 7 | E22: 4 | G22: 2 | H22: 1
A23: 40 | B23: Физика | C23: 5 | E23: 3 | G23: 2
A24: 41 | B24: Химия | C24: 3 | D24: 1 | E24: 1 | H24: 1
A25: 42 | B25: Биология | C25: 7 | D25: 2 | E25: 5
A26: 43 | B26: ИЗО | C26: 2 | E26: 2
A27: 44 | B27: Музыка | C27: 3 | D27: 1 | E27: 1 | H27: 1
A28: 45 | B28: Технология | C28: 12 | D28: 1 | E28: 9 | F28: 1 | G28: 1
A29: 46 | B29: ОБЖ | C29: 3 | E29: 2 | H29: 1
A30: 47 | B30: Преподаватель-организатор ОБЖ | C30: 4 | D30: 1 | E30: 1 | F30: 1 | H30: 1
A31: 48 | B31: Физ-ра | C31: 12 | D31: 2 | E31: 8 | H31: 2
A32: 49 | B32: Инструктор по физической культуре | C32: 1 | E32: 1
A33: 52 | B33: Классный час | C33: 2 | E33: 2
A34: 53 | B34: Музыкальный руководитель | C34: 2 | E34: 2
A35: 54 | B35: N | C35: 48 | D35: 8 | E35: 27 | F35: 3 | G35: 1 | H35: 9
C36: =SUM(C3:C35) -> 644
A37: ДОО
A38: № | B38: Предмет | C38: Всего | D38: ВКК | E38: I КК | F38: II КК | G38: без КК | H38: N
A39: 1 | B39: Заведующий | C39: =SUM(D39:H39) -> 95 | D39: 6 | E39: 49 | F39: 2 | G39: 11 | H39: 27
A40: 2 | B40: Директор | C40: =SUM(D40:H40) -> 1 | H40: 1
A41: 5 | B41: Заместитель заведующего | C41: 1 | H41: 1
A42: 6 | B42: Воспитатель | C42: 522 | D42: 53 | E42: 259 | F42: 5 | G42: 68 | H42: 137
A43: 7 | B43: Дошкольник | C43: 1 | H43: 1
A44: 8 | B44: Инструктор по физ.культуре | C44: 22 | D44: 3 | E44: 8 | G44: 4 | H44: 7
A45: 9 | B45: Тренер-преподаватель | C45: 1 | E45: 1
A46: 11 | B46: Методист | C46: 2 | E46: 1 | H46: 1
A47: 12 | B47: Муз. руководитель | C47: 64 | D47: 6 | E47: 35 | G47: 5 | H47: 18
A48: 15 | B48: Педагог-психолог | C48: 10 | D48: 1 | E48: 4 | G48: 1 | H48: 4
A49: 17 | B49: Специалист | C49: 1 | E49: 1
A50: 19 | B50: Старший воспитатель | C50: 13 | D50: 4 | E50: 7 | G50: 1 | H50: 1
A51: 20 | B51: Учитель | C51: 3 | E51: 1 | F51: 1 | G51: 1
A52: 24 | B52: Учитель-логопед | C52: 13 | D52: 3 | E52: 5 | G52: 2 | H52: 3
A53: 25 | B53: N | C53: 11 | E53: 3 | F53: 1 | G53: 6 | H53: 1
C54: =SUM(C39:C53) -> 760
A55: ДОД
A56: № | B56: Предмет | C56: Всего | D56: ВКК | E56: I КК | F56: II КК | G56: без КК | H56: N
A57: 1 | B57: Директор | C57: =SUM(D57:H57) -> 11 | D57: 3 | E57: 3 | G57: 2 | H57: 3
A58: 2 | B58: Заместитель | C58: =SUM(D58:H58) -> 9 | E58: 5 | H58: 4
A59: 3 | B59: Заместитель директора | C59: 6 | D59: 1 | E59: 1 | G59: 1 | H59: 3
A60: 4 | B60: Заведующий | C60: 3 | D60: 2 | H60: 1
A61: 5 | B61: Заведующий отделением | C61: 1 | H61: 1
A62: 6 | B62: Заведующий структ.подразделения | C62: 6 | E62: 1 | H62: 5
A63: 7 | B63: Заведующий метод.кабинетом | C63: 1 | H63: 1
A64: 8 | B64: Концертмейстер | C64: 5 | D64: 2 | E64: 2 | H64: 1
A65: 9 | B65: Методист | C65: 25 | D65: 4 | E65: 7 | G65: 6 | H65: 8
A66: 10 | B66: Педагог доп.образования | C66: 77 | D66: 18 | E66: 28 | G66: 4 | H66: 27
A67: 11 | B67: Педагог-организатор | C67: 10 | E67: 3 | G67: 4 | H67: 3
A68: 12 | B68: Педагог-психолог | C68: 0
A69: 13 | B69: Преподаватель | C69: 19 | D69: 4 | E69: 10 | F69: 1 | G69: 1 | H69: 3
A70: 14 | B70: Преподаватель ДМШ | C70: 11 | D70: 3 | E70: 5 | G70: 2 | H70: 1
A71: 16 | B71: Преподаватель ДШИ | C71: 14 | D71: 7 | E71: 5 | G71: 1 | H71: 1
A72: 17 | B72: Учитель | C72: 1 | G72: 1
A73: 19 | B73: Воспитатель | C73: 1 | E73: 1
A74: 20 | B74: Педагог-библиотекарь | C74: 1 | G74: 1
C75: =SUM(C57:C74) -> 201
A76: Районные учреждения образования | D76: ИМЦ, РОО
A77: № | B77: Предмет | C77: Всего | D77: ВКК | E77: I КК | F77: II КК | G77: без КК | H77: N
A78: 2 | B78: Заместитель | C78: =SUM(D78:H78) -> 2 | E78: 1 | H78: 1
B79: Заместитель начальника | C79: =SUM(D79:H79) -> 1 | H79: 1
B80: Начальник отдела | C80: 1 | H80: 1
A81: 4 | B81: Методист | C81: 48 | D81: 10 | E81: 17 | F81: 2 | G81: 9 | H81: 10
A82: 6 | B82: Специалист | C82: 1 | H82: 1
A83: 8 | B83: Главный специалист | C83: 1 | G83: 1
B84: N | C84: 2 | E84: 2
C85: =SUM(C78:C84) -> 56
A86: ПО
A87: № | B87: Предмет | C87: Всего | D87: ВКК | E87: I КК | F87: II КК | G87: без КК | H87: N
A88: 3 | B88: Директор | C88: =SUM(D88:H88) -> 2 | D88: 1 | G88: 1
A89: 6 | B89: Заведующий отделением | C89: 1 | G89: 1
A90: 9 | B90: Заместитель | C90: 3 | D90: 2 | H90: 1
A91: 10 | B91: Заместитель директора | C91: 1 | E91: 1
A92: 12 | B92: Мастер производ.обучения | C92: 11 | D92: 2 | E92: 4 | G92: 1 | H92: 4
A93: 13 | B93: Методист | C93: 1 | G93: 1
A94: 16 | B94: Педагог доп.образования | C94: 1 | G94: 1
A95: 18 | B95: Педагог-организатор | C95: 1 | F95: 1
A96: 19 | B96: Педагог-психолог | C96: 1 | E96: 1
A97: 21 | B97: Преподаватель | C97: 20 | D97: 5 | E97: 7 | G97: 3 | H97: 5
A98: 28 | B98: Руководитель физ. воспитания | C98: 1 | D98: 1
A99: 30 | B99: N | C99: 1 | H99: 1
C100: =SUM(C88:C99) -> 44
A101: Прочие (детские дома, центры психолого-медико-социального сопровождения, межшкольный учебный комбинат, вечерняя школа закрытого типа)
A102: № | B102: Предмет | C102: Всего | D102: ВКК | E102: I КК | F102: II КК | G102: без КК | H102: N
A103: 1 | B103: Воспитатель | C103: =SUM(D103:H103) -> 12 | D103: 1 | E103: 5 | G103: 1 | H103: 5
A104: 3 | B104: Замиститель | C104: =SUM(D104:H104) -> 1 | E104: 1
A105: 10 | B105: Педагог-психолог | C105: 9 | D105: 3 | E105: 1 | G105: 2 | H105: 3
A106: 12 | B106: Социальный педагог | C106: 3 | E106: 1 | F106: 1 | H106: 1
A107: 14 | B107: Учитель | C107: 1 | E107: 1
A108: 16 | B108: Учитель-логопед | C108: 1 | G108: 1
A109: 17 | B109: N | C109: 1 | H109: 1
C110: =SUM(C103:C109) -> 28
C111: 1733
